{"text_format":"1","workbook":"xlsx","n_sheets":46,"sheets":["Indice","BG","ER","EVPN","EFE","Nota1","Nota 2","Nota 3","Nota 4","Nota 5","Nota 6","Nota 7","Nota 8","Nota 9","Nota 10","Nota 11","Nota 12","Nota 13","Nota 14","Nota 15","Nota 16","Nota 17","Nota 18","Nota 19","Nota 20"," Nota 21","Nota 22","Nota 23","Nota 24","Nota 25","Nota 26","Nota 27","Nota 28","Nota 29","Nota 30","Nota 31","Nota 32","Nota 33","Nota 34","Nota 35","Nota 36","Nota 37","Nota 38","Nota 39","Nota 40","Base de Monedas"],"not_rendered":{"charts":0,"images":4,"macros":1,"external_links":3,"defined_names":2,"comments":0,"pivot_tables":0},"unopened":[],"bounds":{"document_bytes":16777216,"sheet_cells":100000,"rows_first":2000,"rows_last":500,"rows_between":2000,"halvings":0,"cell_chars":16384,"cell_head_chars":4096},"cells_cut":0,"cells_raw":0,"read":"whole","date_system":"1900"}

{"sheet":"Indice","index":0,"n_rows":64,"n_cols":20,"rows_kept":64,"cut":false,"hidden":false,"merged":[]}
[null,"Sociedad:","GROW S.A.E.C.A.","<-- Colocar Nombre de la Sociedad"]
[null,null,null,null,null,null,null,null,null,null,null,null,null,null,null,null,null,null,1,"Enero"]
[null,null,null,null,null,null,null,null,null,null,null,null,null,null,null,null,null,null,2,"Febrero"]
[null,null,null,null,null,null,null,null,null,null,null,null,null,null,null,null,null,null,3,"Marzo"]
[null,null,null,null,null,null,null,null,null,null,null,null,null,null,null,null,null,null,4,"Abril"]
["Fecha Presentación:","2022-09-30","<-- Completar Fecha en formato (DD/MM/AAA)",null,null,null,null,null,null,null,null,null,null,null,null,null,null,null,5,"Mayo"]
[null,null,null,null,null,null,null,null,null,null,null,null,null,null,null,null,null,null,6,"Junio"]
[null,null,null,null,null,null,null,null,null,null,null,null,null,null,null,null,null,null,7,"Julio"]
[null,null,"INDICE","REF.",null,null,null,null,null,null,null,null,null,null,null,null,null,null,8,"Agosto"]
[null,"Informacion General",null,null,null,null,null,null,null,null,null,null,null,null,null,null,null,null,9,"Septiembre"]
[null,null,"Descripción de la naturaleza y del negocio de la Sociedad","Nota 1",null,null,null,null,null,null,null,null,null,null,null,null,null,null,10,"Octubre"]
[null,null,"Resumen de las principales políticas contables","Nota 2",null,null,null,null,null,null,null,null,null,null,null,null,null,null,11,"Noviembre"]
[null,"Balance General",null,"BG",null,null,null,null,null,null,null,null,null,null,null,null,null,null,12,"Diciembre"]
[null,null,"Efectivo y equivalente de efectivo","Nota 3"]
[null,null,"Inversiones temporales","Nota 4"]
[null,null,"Cuentas por cobrar comerciales","Nota 5"]
[null,null,"Otros créditos","Nota 6"]
[null,null,"Cuentas por cobrar comerciales","Nota 5"]
[null,null,"Inventarios","Nota 7"]
[null,null,"Inversión en asociadas","Nota 8"]
[null,null,"Propiedades, planta y equipo","Nota 9"]
[null,null,"Activos disponibles para la venta","Nota 10"]
[null,null,"Activos intangibles","Nota 11"]
[null,null,"Goodwill","Nota 12"]
[null,null,"Cuentas por pagar comerciales","Nota 13"]
[null,null,"Préstamos a corto plazo","Nota 14"]
[null,null,"Porción corriente de la deuda a largo plazo","Nota 15"]
[null,null,"Remuneraciones y cargas sociales a pagar","Nota 16"]
[null,null,"Impuestos a pagar","Nota 17"]
[null,null,"Provisiones","Nota 18"]
[null,null,"Otros pasivos corrientes","Nota 19"]
[null,null,"Prestamos a largo plazo","Nota 14"]
[null,null,"Otros pasivos no corrientes","Nota 19"]
[null,null,"Capital integrado","Nota 20"]
[null,null,"Reserva de revalúo","Nota 21"]
[null,null,"Reserva legal","Nota 21"]
[null,null,"Reservas estatutarias","Nota 21"]
[null,null,"Reservas facultativas","Nota 21"]
[null,null,"Diferencia transitoria por conversión","Nota 22"]
[null,null,"Resultados acumulados","Nota 23"]
[null,null,"Interés minoritario","Nota 24"]
[null,"Estado de Resultados ",null,"ER"]
[null,null,"Ventas","Nota 25"]
[null,null,"Costo de ventas","Nota 26"]
[null,null,"Gastos de ventas","Nota 27"]
[null,null,"Gastos administrativos","Nota 27"]
[null,null,"Otros ingresos y gastos operativos","Nota 28"]
[null,null,"Ingresos financieros - neto","Nota 29"]
[null,null,"Gastos financieros - neto","Nota 29"]
[null,null,"Resultado de inversiones en asociadas","Nota 30"]
[null,null,"Resultado participación minoritaria","Nota 31"]
[null,null,"Impuesto a la renta","Nota 32"]
[null,null,"Resultado extraordinario neto de impuesto a la renta","Nota 33"]
[null,null,"Resultado sobre actividades discontinuadas neto de impuesto a la renta","Nota 34"]
[null,null,"Utilidad/(Pérdida) neta del año","Nota 35"]
[null,null,"Utilidad neta por acción ordinaria","Nota 35"]
[null,"Estado de Evolución del Patrimonio Neto",null,"EVPN"]
[null,"Estado de Flujos de Efectivo",null,"EFE"]
[null,"Otras Notas de los Estados Financieros"]
[null,null,"Activos gravados","Nota 36"]
[null,null,"Contingencias y compromisos","Nota 37"]
[null,null,"Impuesto diferido","Nota 38"]
[null,null,"Hechos posteriores","Nota 39"]
[null,null,"Saldos y transacciones con partes relacionadas","Nota 40"]

{"sheet":"BG","index":1,"n_rows":61,"n_cols":9,"rows_kept":61,"cut":false,"hidden":false,"merged":[[64,5,64,6],[13,2,13,3],[14,2,14,3],[15,2,15,3],[16,2,16,3],[17,2,17,3],[26,2,26,3],[31,2,31,3],[33,2,33,3],[34,2,34,3],[35,2,35,3],[36,2,36,3],[54,2,54,3],[49,2,49,3],[50,2,50,3],[51,2,51,3],[48,2,48,3],[47,2,47,3],[6,0,6,6],[8,0,8,6],[63,5,63,6],[52,2,52,3],[53,2,53,3],[27,2,27,3],[24,2,24,3],[25,2,25,3],[20,2,20,3],[22,2,22,3],[23,2,23,3],[32,2,32,3],[7,0,7,6],[65,5,65,6],[5,2,5,3],[69,5,69,6],[70,1,70,3],[11,1,11,3],[29,1,29,3],[45,1,45,3],[44,1,44,3],[55,1,55,3],[68,5,68,6],[28,1,28,3],[56,1,56,3],[37,2,37,3],[40,2,40,3],[41,2,41,3],[46,2,46,3]]}
[null,null,null,null,"Indice"]
[]
[]
[]
[]
[null,null,"GROW S.A.E.C.A."]
["BALANCE GENERAL"]
[{"$f":"IFERROR(IF(Indice!B6=\"\",\"Al dia... de mes… de año 2XX2…\",\"Al \"&DAY(Indice!B6)&\" de \"&VLOOKUP(MONTH(Indice!B6),Indice!S:T,2,0)&\" de \"&YEAR(Indice!B6)),\"Al dia... de mes… de año 2XX2…\")","v":"Al 30 de Septiembre de 2022"}]
["(En miles de guaraníes)"]
[]
[null,null,null,null,"Nota",{"$f":"IFERROR(IF(Indice!B6=\"\",\"2XX2\",YEAR(Indice!B6)),\"2XX2\")","v":2022},{"$f":"IFERROR(YEAR(Indice!B6-366),\"2XX1\")","v":2021}]
[null,"ACTIVOS"]
[null,"Activos Corrientes"]
[null,null,"Efectivo y equivalente de efectivo",null,3,{"$f":"'Nota 3'!C20","v":575697},{"$f":"'Nota 3'!D20","v":1197356}]
[null,null,"Inversiones temporales",null,4,{"$f":"'Nota 4'!B18","v":0},{"$f":"'Nota 4'!C18","v":0}]
[null,null,"Cuentas por cobrar comerciales",null,5,{"$f":"'Nota 5'!C31","v":23627883},{"$f":"'Nota 5'!D31","v":16750877}]
[null,null,"Otros créditos",null,6,{"$f":"'Nota 6'!B17","v":682511},{"$f":"'Nota 6'!C17","v":473144}]
[null,null,"Inventarios",null,7,{"$f":"'Nota 7'!B15","v":0},{"$f":"'Nota 7'!C15","v":0}]
[null,null,"Total activos corrientes",null,null,{"$f":"SUM(F14:F18)","v":24886091},{"$f":"SUM(G14:G18)","v":18421377}]
[null,"Activos no Corrientes"]
[null,null,"Otros créditos ",null,6,{"$f":"'Nota 6'!F15","v":13755},{"$f":"'Nota 6'!G15","v":13954}]
[null,null,"Cuentas por cobrar comerciales",null,5,{"$f":"'Nota 5'!C58","v":0},{"$f":"'Nota 5'!D58","v":0}]
[null,null,"Inversión en asociadas",null,8,{"$f":"'Nota 8'!B8","v":302550},{"$f":"'Nota 8'!C8","v":68730}]
[null,null,"Propiedades, planta y equipo/Bienes de uso, neto",null,9,{"$f":"'Nota 9'!L25","v":442439},{"$f":"'Nota 9'!M25","v":506742}]
[null,null,"Activos disponibles para la venta",null,10,{"$f":"'Nota 10'!B20","v":2643782},{"$f":"'Nota 10'!C20","v":2506367}]
[null,null,"Activos intangibles",null,11,{"$f":"'Nota 11'!B10","v":0},{"$f":"'Nota 11'!C10","v":0}]
[null,null,"Goodwill",null,12,{"$f":"'Nota 12'!B11","v":0},{"$f":"'Nota 12'!C11","v":0}]
[null,null,"Total activos no corrientes",null,null,{"$f":"SUM(F21:F27)","v":3402526},{"$f":"SUM(G21:G27)","v":3095793}]
[null,"Total Activos",null,null,null,{"$f":"+F19+F28","v":28288617},{"$f":"+G19+G28","v":21517170}]
[null,"PASIVOS Y PATRIMONIO NETO"]
[null,"Pasivos corrientes",null,null,null,-1]
[null,null,"Cuentas por pagar comerciales",null,13,{"$f":"'Nota 13'!D13+'Nota 13'!D20","v":436469},{"$f":"'Nota 13'!E13+'Nota 13'!E20","v":623896}]
[null,null,"Préstamos a corto plazo ",null,14,{"$f":"'Nota 14'!E31","v":0},{"$f":"'Nota 14'!K31","v":3351103}]
[null,null,"Porción corriente de la deuda a largo plazo",null,15,{"$f":"'Nota 15'!B15","v":0},{"$f":"'Nota 15'!C15","v":0}]
[null,null,"Remuneraciones y cargas sociales a pagar",null,16,{"$f":"'Nota 16'!B12","v":32606},{"$f":"'Nota 16'!C12","v":8173}]
[null,null,"Impuestos a pagar",null,17,{"$f":"'Nota 17'!B13","v":309440},{"$f":"'Nota 17'!C13","v":40360}]
[null,null,"Provisiones",null,18,{"$f":"'Nota 18'!B13","v":0},{"$f":"'Nota 18'!C13","v":0}]
[null,null,"Otros pasivos corrientes",null,19,{"$f":"'Nota 19'!B14","v":0},{"$f":"'Nota 19'!C14","v":0}]
[null,null,"Total Pasivos Corrientes",null,null,{"$f":"SUM(F32:F38)","v":778515},{"$f":"SUM(G32:G38)","v":4023532}]
[null,"Pasivos no corrientes"]
[null,null,"Préstamos a largo plazo ",null,14,{"$f":"'Nota 14'!E54","v":0},{"$f":"'Nota 14'!K54","v":0}]
[null,null,"Ingresos Diferidos",null,19,{"$f":"'Nota 19'!F14","v":9343203},{"$f":"'Nota 19'!G14","v":315321}]
[null,null,"Total pasivos no corrientes",null,null,{"$f":"SUM(F41:F42)","v":9343203},{"$f":"SUM(G41:G42)","v":315321}]
[]
[null,"Total Pasivos",null,null,null,{"$f":"+F39+F43","v":10121718},{"$f":"+G39+G43","v":4338853},0,0]
[null,"Patrimonio Neto"]
[null,null,"Capital integrado",null,20,{"$f":"'Nota 20'!B11","v":13936100},{"$f":"'Nota 20'!C11","v":10000000}]
[null,null,"Reserva de revalúo",null,21,{"$f":"' Nota 21'!B8","v":35270},{"$f":"' Nota 21'!C8","v":35270}]
[null,null,"Reserva legal",null,21,{"$f":"' Nota 21'!B12","v":483409},{"$f":"' Nota 21'!C12","v":417517}]
[null,null,"Reservas estatutarias",null,21,{"$f":"' Nota 21'!B16","v":0},{"$f":"' Nota 21'!C16","v":0}]
[null,null,"Reservas facultatitvas",null,21,{"$f":"' Nota 21'!B20","v":2460172},{"$f":"' Nota 21'!C20","v":3961686},0]
[null,null,"Diferencia transitoria por conversión",null,22,{"$f":"'Nota 22'!B8","v":0},{"$f":"'Nota 22'!C8","v":0}]
[null,null,"Resultados acumulados",null,23,{"$f":"'Nota 23'!B10","v":1251948},{"$f":"'Nota 23'!C10","v":2763844}]
[null,null,"Subtotal",null,null,{"$f":"SUM(F47:F53)","v":18166899},{"$f":"SUM(G47:G53)","v":17178317}]
[null,null,"Interés minoritario",null,24,{"$f":"'Nota 24'!B8","v":0},{"$f":"'Nota 24'!C8","v":0}]
[null,"Total Patrimonio Neto",null,null,null,{"$f":"F54","v":18166899},{"$f":"G54","v":17178317}]
[null,"Total Pasivos y Patrimonio Neto",null,null,null,{"$f":"+F45+F56","v":28288617},{"$f":"+G45+G56","v":21517170}]
[]
[]
[]
[null,null,null,null,null,{"$f":"+F57-F29","v":0},{"$f":"+G57-G29","v":0}]

{"sheet":"ER","index":2,"n_rows":42,"n_cols":4,"rows_kept":42,"cut":false,"hidden":false,"merged":[[49,2,49,3],[6,0,6,3],[7,0,7,3],[8,0,8,3],[9,0,9,3],[43,2,43,3],[40,2,40,3],[41,2,41,3],[39,2,39,3]]}
[null,"Indice",null,{"$f":"ER!A4","v":" "}]
[]
[]
[" "]
[]
["GROW S.A.E.C.A."]
["ESTADO DE RESULTADOS"]
[{"$f":"IFERROR(IF(Indice!B6=\"\",\"Al dia... de mes… de año 2XX2…\",\"Al \"&DAY(Indice!B6)&\" de \"&VLOOKUP(MONTH(Indice!B6),Indice!S:T,2,0)&\" de \"&YEAR(Indice!B6)),\"Al dia... de mes… de año 2XX2…\")","v":"Al 30 de Septiembre de 2022"}]
["Comparativo con igual período del año anterior"]
[" (En miles de guaraníes)"]
[]
[null,"Nota",{"$f":"IFERROR(IF(Indice!B6=\"\",\"2XX2\",YEAR(Indice!B6)),\"2XX2\")","v":2022},{"$f":"IFERROR(YEAR(Indice!B6-366),\"2XX1\")","v":2021}]
["Ventas",25,{"$f":"'Nota 25'!B30","v":5710906.1850000005},{"$f":"'Nota 25'!C30","v":4159440}]
["Costo de ventas",26,{"$f":"'Nota 26'!B21","v":214363},{"$f":"'Nota 26'!C21","v":83763}]
["Utilidad bruta",null,{"$f":"C13-C14","v":5496543.1850000005},{"$f":"D13-D14","v":4075677}]
["Gastos de ventas",27,{"$f":"'Nota 27'!B35","v":271042},{"$f":"'Nota 27'!E35","v":164573}]
["Gastos administrativos ",27,{"$f":"'Nota 27'!C35","v":3822721},{"$f":"'Nota 27'!F35","v":2468030}]
["Otros ingresos  y gastos operativos",28]
["Resultado operativo",null,{"$f":"SUM(C16:C18)","v":4093763},{"$f":"SUM(D16:D18)","v":2632603}]
["Ingresos financieros - neto",29,{"$f":"'Nota 29'!B14","v":0},{"$f":"'Nota 29'!C14","v":0}]
["Gastos financieros -  neto",29,{"$f":"'Nota 29'!F14","v":0},{"$f":"'Nota 29'!G14","v":0}]
["Subtotal",null,{"$f":"SUM(C20:C21)","v":0},{"$f":"SUM(D20:D21)","v":0}]
["Resultado de inversiones en asociadas",30,{"$f":"'Nota 30'!B16","v":0},{"$f":"'Nota 30'!C16","v":0}]
["Resultados ordinarios antes de impuesto a la renta y participación minoritaria",null,{"$f":"C22+C23","v":0},{"$f":"D22+D23","v":0}]
["Resultado participación minoritaria",31,{"$f":"'Nota 31'!B16","v":0},{"$f":"'Nota 31'!C16","v":0}]
["Resultado ordinario antes del impuesto a la renta",null,{"$f":"+C15-C19","v":1402780.1850000005},{"$f":"+D15-D19","v":1443074}]
["Impuesto a la renta",32,{"$f":"'Nota 32'!B14","v":150832},{"$f":"'Nota 32'!C14","v":150160}]
["Resultado neto de actividades ordinarias",null,{"$f":"C26-C27","v":1251948.1850000005},{"$f":"D26-D27","v":1292914}]
["Resultado extraordinario neto de impuesto a la renta",33,{"$f":"'Nota 33'!B14","v":0},{"$f":"+'Nota 33'!C9","v":0}]
["Resultado sobre actividades discontinuadas neto de impuesto a la renta",34,{"$f":"'Nota 34'!B12","v":0},{"$f":"'Nota 34'!C12","v":0}]
["Utilidad/(Pérdida) neta del año ",null,{"$f":"C28+C29+C30","v":1251948.1850000005},{"$f":"D28+D29+D30","v":1292914}]
["Utilidad neta por acción ordinaria",35,{"$f":"'Nota 35'!B10","v":8.9834902519356241},{"$f":"'Nota 35'!C10","v":12.92914}]
[]
[]
[]
[]
[]
[]
[]
["….............................",null,"…............................."]
["Marcos Amarilla",null,"William Cuadra"]
["Director",null,"Contador"]

{"sheet":"EVPN","index":3,"n_rows":32,"n_cols":20,"rows_kept":32,"cut":false,"hidden":true,"merged":[[10,17,11,17],[10,19,11,19],[5,0,5,15],[6,0,6,15],[10,2,11,2],[10,5,11,5],[10,7,11,7],[10,9,11,9],[10,11,11,11],[10,13,11,13],[10,15,11,15],[10,0,11,0],[9,2,9,5],[9,11,9,15]]}
[{"$f":"Indice!C1","v":"GROW S.A.E.C.A."},null,null,null,null,null,null,"Indice"]
[]
[]
[null,null,null,null,null,"ESTADO DE EVOLUCIÓN DEL PATRIMONIO NETO"]
[null,null,null,null,null,null,null,{"$f":"IFERROR(IF(Indice!B6=\"\",\"Al dia... de mes… de año 2XX2…\",\"Al \"&DAY(Indice!B6)&\" de \"&VLOOKUP(MONTH(Indice!B6),Indice!S:T,2,0)&\" de \"&YEAR(Indice!B6)),\"Al dia... de mes… de año 2XX2…\")","v":"Al 30 de Septiembre de 2022"}]
["Comparativo con igual periodo del año anterior"]
["(En miles de guaraníes)"]
[]
[]
[null,null,"Aporte de los propietarios",null,null,null,null,null,null,null,null,"Ganancias reservadas"]
[null,null,"Capital suscripto e integrado","Aporte para",null,"Primas de emisión",null,"Reserva de revalúo",null,"Reserva de revalúo técnico",null,"Reserva legal",null,"Reserva facultativa",null,"Resultados acumulados",null,"Interes Minoritario",null,"Total"]
[null,null,null,"aumento de capital",null,null,null,null,null,null,null,null,null,null,null,"Total"]
[]
[{"$f":"IFERROR(IF(Indice!B6=\"\",\"Saldo al .. de  de 20X0 \",\"Saldo al \"&DAY(Indice!B6)&\" de \"&VLOOKUP(MONTH(Indice!B6),Indice!S:T,2,0)&\" de \"&YEAR(Indice!B6-730)),\"Saldo al .. de  de 20X0 \")","v":"Saldo al 30 de Septiembre de 2020"},null,{"$f":"5330900+617186","v":5948086},null,null,null,null,13376,null,null,null,106081,null,null,null,{"$f":"793083-74505","v":718578},null,null,null,{"$f":"+SUM(C14:R14)","v":6786121}]
["Cambio en política contable (Nota….)"]
["Saldo reestructurado",null,{"$f":"+C14","v":5948086},null,{"$f":"+E14","v":0},0,0,13376,0,0,0,106081,0,0,0,718578,0,0,0,{"$f":"+SUM(C16:R16)","v":6786121}]
["Distribución de dividendos s/Acta de Asamblea Ordinaria N°… de fecha………"]
["Integración del capital social",null,482500,null,null,11550,null,11722,null,0,null,59911,null,null,null,0,null,null,null,{"$f":"+SUM(C18:R18)","v":565683}]
["Reducción del capital social s/Acta de Asamblea General Ordinaria N°… de fecha…….."]
["Revalúo de activos fijos"]
["Revalúo técnico"]
["Resultado del año",null,null,null,null,null,null,null,null,null,null,null,null,null,null,1138316]
[]
[{"$f":"IFERROR(IF(Indice!B6=\"\",\"Saldo al .. de  de 20X1 \",\"Saldo al \"&DAY(Indice!B6)&\" de \"&VLOOKUP(MONTH(Indice!B6),Indice!S:T,2,0)&\" de \"&YEAR(Indice!B6-365)),\"Saldo al .. de  de 20X1 \")","v":"Saldo al 30 de Septiembre de 2021"},null,{"$f":"C16+C17+C18+C19+C20+C21+C22","v":6430586},{"$f":"SUM(D14:D22)","v":0},null,{"$f":"F16+F17+F18+F19+F20+F21+F22","v":11550},{"$f":"SUM(G14:G23)","v":0},{"$f":"H16+H17+H18+H19+H20+H21+H22","v":25098},null,{"$f":"J16+J17+J18+J19+J20+J21+J22","v":0},null,{"$f":"L16+L17+L18+L19+L20+L21+L22","v":165992},null,{"$f":"N16+N17+N18+N19+N20+N21+N22","v":0},null,{"$f":"P16+P17+P18+P19+P20+P21+P22","v":1856894},null,{"$f":"R16+R17+R18+R19+R20+R21+R22","v":0},null,{"$f":"+SUM(C24:R24)","v":8490120}]
["Distribución de dividendos s/Acta de Asamblea General Ordinaria N°… de fecha………"]
["Revalúo de activos fijos",null,2169236,null,null,754721,null,10170,null,null,null,72297,null,{"$f":"+' Nota 21'!B23","v":270900},null,1373382,null,null,null,{"$f":"+SUM(C26:R26)","v":4650706}]
["Desafectación de la reserva de revalúo técnico"]
["Resultado del año",null,null,null,null,null,null,null,null,null,null,null,null,null,null,-1856895]
[]
[{"$f":"IFERROR(IF(Indice!B6=\"\",\"Saldo al .. de  de 20X2 \",\"Saldo al \"&DAY(Indice!B6)&\" de \"&VLOOKUP(MONTH(Indice!B6),Indice!S:T,2,0)&\" de \"&YEAR(Indice!B6)),\"Saldo al .. de  de 20X2 \")","v":"Saldo al 30 de Septiembre de 2022"},null,{"$f":"C24+C25+C26+C27+C28","v":8599822},{"$f":"SUM(D24:D28)","v":0},null,{"$f":"F24+F25+F26+F27+F28","v":766271},null,{"$f":"H24+H25+H26+H27+H28","v":35268},null,{"$f":"J24+J25+J26+J27+J28","v":0},null,{"$f":"L24+L25+L26+L27+L28","v":238289},null,{"$f":"N24+N25+N26+N27+N28","v":270900},null,{"$f":"P24+P25+P26+P27+P28","v":1373381},null,{"$f":"R24+R25+R26+R27+R28","v":0},null,{"$f":"+SUM(C30:R30)","v":11283931}]
[]
["Las notas que se acompañan forman parte integrante de estos estados."]

{"sheet":"EFE","index":4,"n_rows":43,"n_cols":3,"rows_kept":43,"cut":false,"hidden":true,"merged":[[2,0,2,2],[4,0,4,2],[5,0,5,2],[6,0,6,2],[7,0,7,2]]}
[{"$f":"Indice!C1","v":"GROW S.A.E.C.A."}]
[]
[]
[]
["ESTADO DE FLUJOS DE EFECTIVO (Método directo)"]
[{"$f":"IFERROR(IF(Indice!B6=\"\",\"Al dia... de mes… de año 2XX2…\",\"Al \"&DAY(Indice!B6)&\" de \"&VLOOKUP(MONTH(Indice!B6),Indice!S:T,2,0)&\" de \"&YEAR(Indice!B6)),\"Al dia... de mes… de año 2XX2…\")","v":"Al 30 de Septiembre de 2022"}]
["Comparativo con igual periodo del año anterior"]
["(En miles de guaraníes)"]
[]
[]
[null,{"$f":"IFERROR(IF(Indice!B6=\"\",\"2XX2\",YEAR(Indice!B6)),\"2XX2\")","v":2022},{"$f":"IFERROR(YEAR(Indice!B6-365),\"2XX1\")","v":2021}]
[]
["FLUJO DE EFECTIVO DE ACTIVIDADES OPERATIVAS"]
["Cobranzas efectuadas a clientes",1288709,1288709]
["Pagos efectuados a proveedores y empleados",-293928,-293928]
["Efectivo generado por las operaciones",-2503675,-2503675]
["Intereses pagados",-165228,-165228]
["Otros ingresos y (egresos) - neto"]
["Pagos de impuesto a la renta",-173859,-173859]
["Flujo neto de efectivo de actividades operativas",{"$f":"SUM(B14:B19)","v":-1847981},{"$f":"SUM(C14:C19)","v":-1847981}]
[]
["FLUJO DE EFECTIVO DE ACTIVIDADES DE INVERSIÓN "]
["Adquisición de bienes de uso",-17145,-17145]
["Adquisición de bienes Curtiembre - fideicomitida"]
["Ventas de activos fijos",0,0]
["Ventas de bienes de uso"]
["Intereses cobrados sobre inversiones"]
["Aquisición de inversiones",-450042,-450042]
["Flujo neto de efectivo de actividades de inversión",{"$f":"SUM(B23:B28)","v":-467187},{"$f":"SUM(C23:C28)","v":-467187}]
[]
["FLUJO DE EFECTIVO DE ACTIVIDADES DE FINANCIACIÓN"]
["(Disminución) Incremento de préstamos",1101771,1101771]
["Aportes de capital recibidos",1078612,1078612]
["Dividendos pagados",-296210,-296210]
["Flujo neto de efectivo de actividades de financiamiento",{"$f":"B32+B33+B34","v":1884173},{"$f":"C32+C33+C34","v":1884173}]
[]
["(Disminución) Incremento neto de efectivo",{"$f":"+B20+B29+B35","v":-430995},{"$f":"+C20+C29+C35","v":-430995}]
["Efecto estimado de la diferencia de cambio sobre el saldo de efectivo",0,0]
["Efectivo al principio del año",1022091,1022091]
[]
["Efectivo al final del periodo",{"$f":"+SUM(B37:B39)","v":591096},{"$f":"+SUM(C37:C39)","v":591096}]
[null,{"$error":"#REF!"}]
["Las notas que se acompañan forman parte integrante de estos estados."]

{"sheet":"Nota1","index":5,"n_rows":12,"n_cols":9,"rows_kept":12,"cut":false,"hidden":false,"merged":[[10,9,10,11],[11,0,23,8],[7,0,7,8]]}
[{"$f":"Indice!C1","v":"GROW S.A.E.C.A."},null,null,null,null,null,null,null,"BG"]
[]
[]
[]
[]
["NOTAS A LOS ESTADOS FINANCIEROS CORRESPONDIENTES AL PERIODO TERMINADO",null,null,null,null,null,null,{"$f":"IFERROR(IF(Indice!B6=\"\",\"Al dia... de mes… de año 2XX2…\",\"Al \"&DAY(Indice!B6)&\" de \"&VLOOKUP(MONTH(Indice!B6),Indice!S:T,2,0)&\" de \"&YEAR(Indice!B6)),\"Al dia... de mes… de año 2XX2…\")","v":"Al 30 de Septiembre de 2022"}]
["Presentadas en forma comparativa con el periodo terminado ",null,null,null,null,{"$f":"IFERROR(\"Al \"&DAY(Indice!B6)&\" de \"&VLOOKUP(MONTH(Indice!B6),Indice!S:T,2,0)&\" de \"&YEAR(Indice!B6-365),\"Al dia... de mes… de año 2XX1…\")","v":"Al 30 de Septiembre de 2021"}]
[" "]
[]
[]
["NOTA 1 – DESCRIPCIÓN DE LA NATURALEZA Y DEL NEGOCIO DE LA COMPAÑÍA"]
["GROW SOCIEDAD ANÓNIMA EMISORA DE CAPITAL ABIERTO., fue constituida por Escritura Pública Nº 122 del nueve de mayo del año dos mil catorce, ante la notaria y escribana pública Natalia Elizabeth Ylari, de Cambyreta, República del Paraguay, inscripta en el Registro Público de Comercio bajo el Nº 938, Serie I. folio  11385 y siguientes de la Sección Contratos, el día once de julio de dos mil catorce; e inscripta en el Registro de las Personas Jurídicas y Asociaciones bajo el Nº 719, folio 7907 y siguientes, serie E, el día once de julio del año dos mil catorce. La Sociedad fija domicilio en la Ciudad de Encarnación, Itapúa. La duración de la Sociedad será de noventa y nueve años. Actualizadas por la escritura pública de protocolización de acta de asamblea General Ordinaria del 20 de abril del año 2015 pasada ante la escribana Publica Natalia Elizabeth Ylari, de Cambyreta, inscripta en la Dirección General de Registros Públicos sección comercial bajo el N° 1 folio 1 y siguientes en fecha 05 de agosto de 2015. Modificada por la escritura pública N° 121 del 11 de mayo del 2016 pasada ante la escribana Publica Natalia Elizabeth Ylari, de Cambyreta, inscripta en la Dirección General de Registros Públicos sección comercial bajo el N° 1 folio 1 y siguientes en fecha 20 de septiembre de 2016 con la cual obtuvo la denominación de GROW S.A.E.C.A. Modificada por la escritura Pública N° 108 del 22 de abril del 2022 pasada ante la escribana Pública Natalia Elizabeth Ylari, en Cambyreta, incripta en la Dirección General de Registros Público Sección Personas Jurídicas y Comercio bajo el N° 3, Folio 20 en fecha 28/09/2022; por el cual se modifica el Capital Social y se establecen nuevas clases de acciones.   La sociedad tendrá por objeto principal: Créditos Personales; Créditos Hipotecarios; Créditos prendarios; además toda transacción comercial o crediticia que implique la tenencia, negociación garantía o inversión en títulos valores financieros o bursátiles.  "]

{"sheet":"Nota 2","index":6,"n_rows":101,"n_cols":9,"rows_kept":101,"cut":false,"hidden":false,"merged":[[62,9,62,10],[63,9,63,10],[78,9,78,10],[71,9,71,10],[72,9,72,10],[65,9,65,10],[66,9,66,10],[67,9,67,10],[63,0,63,8],[64,9,64,10],[64,0,64,8],[77,0,77,8],[78,0,78,8],[73,9,73,10],[74,9,74,10],[74,0,74,8],[69,0,69,8],[71,0,71,8],[72,0,72,8],[66,0,66,8],[67,0,67,8],[73,0,73,8],[68,0,68,8],[118,5,118,13],[86,9,86,10],[88,9,88,10],[75,0,75,8],[81,0,81,8],[75,9,75,10],[77,9,77,10],[80,0,80,8],[9,0,9,8],[13,0,13,8],[19,0,19,8],[18,0,18,8],[41,0,41,8],[36,0,36,8],[37,0,37,8],[33,0,33,8],[16,0,16,8],[17,0,17,8],[59,0,59,8],[65,0,65,8],[62,0,62,8],[101,0,101,8],[94,0,94,8],[95,0,95,8],[79,0,79,8],[88,0,88,8],[96,0,96,8],[84,0,84,8],[89,0,89,8],[91,0,91,8],[85,0,85,8],[100,0,100,8],[98,0,98,8],[99,0,99,8],[5,0,5,8],[42,0,42,8],[54,0,54,8],[58,0,58,8],[53,0,53,8],[55,0,55,8],[15,0,15,8],[6,0,6,8],[14,0,14,8],[10,0,10,8],[11,0,11,8],[34,0,34,8],[38,0,38,8],[39,0,39,8],[31,0,31,8],[43,0,43,8]]}
[{"$f":"Indice!C1","v":"GROW S.A.E.C.A."},null,null,null,null,null,null,null,"BG"]
[]
[]
[]
[]
["NOTA 2 - RESUMEN DE LAS PRINCIPALES POLÍTICAS CONTABLES"]
["Resumen de las principales políticas contables: a modo referencial, se incluyen las siguientes revelaciones de políticas contables en estados financieros de uso general que podrá ser tenida en consideración por las sociedades emisoras para la preparación de este capítulo de los estados financieros:"]
[]
[]
["a.   Bases de contabilización (Según NIF Bases de preparación de los Estados Financieros)"]
["Los estados financieros se han preparado siguiendo los criterios de las Normas de Información Financiera (NIF) emitidas por el Consejo de Contadores Públicos del Paraguay sobre la base de costos históricos, excepto para el caso de activos y pasivos en moneda extranjera  y las propiedades, planta y equipo según se explica en los puntos c ) y k), y no reconocen en forma integral los efectos de la inflación sobre la situación patrimonial y financiera de la sociedad, sobre los resultados de sus operaciones y los flujos de efectivo, en atención a que la corrección monetaria no constituye una práctica contable obligatoria en el Paraguay. \n"]
["De haberse aplicado una corrección monetaria integral de los estados financieros, podrían haber surgido diferencias en la presentación de la situación patrimonial y financiera de la sociedad, en los resultados de sus operaciones y en los flujos de efectivo al ….., y por los ejercicios cerrados el, 31 de diciembre de 2020 y 2019. Según el índice general de precios del consumo (IPC) publicado por el Banco Central del Paraguay, la inflación fue de 00,0% en el año 20X2 y 00,0% en el año 20X1. Obs: Datos a incorporar para cierre del ejercicio\n\n"]
[]
[]
["b.   Uso de estimaciones contables"]
["La preparación de los presentes estados financieros requiere que la Gerencia de la sociedad realice estimaciones y evaluaciones que afectan el monto de los activos y pasivos registrados y contingentes, como así también los ingresos y egresos registrados en el ejercicio.  Los resultados reales futuros pueden diferir de las estimaciones y evaluaciones realizadas a la fecha de preparación de los presentes estados financieros."]
[]
["c.   Moneda extranjera"]
["Los activos y pasivos en moneda extranjera se valúan a los tipos de cambio vigentes a la fecha de cierre del ejercicio."]
["Las diferencias de cambio originadas por fluctuaciones en los tipos de cambio producidos entre las fechas de concertación de las operaciones y su liquidación o valuación al cierre del ejercicio, son reconocidas en resultados."]
[]
[]
[null,null,{"$f":"IFERROR(IF(Indice!B6=\"\",\"2XX2\",YEAR(Indice!B6)),\"2XX2\")","v":2022},null,null,null,{"$f":"IFERROR(YEAR(Indice!B6-365),\"2XX1\")","v":2021}]
[null,"Indicar moneda","Simbología según ISO 4217","Miles de G.",null,"Indicar moneda","Simbología según ISO 4217","Miles de G."]
["Activos","Guaraníes","G",17389963.328400001]
[]
["Pasivos","Guaraníes","G",1963067.8948299999]
[]
["Posición neta",null,null,{"$f":"+D25-D27","v":15426895.433570001},null,null,null,{"$f":"+H25-H27","v":0}]
[]
[]
["A la fecha de emisión de estos estados financieros, el tipo de cambio de la moneda extranjera Dolares Americanos tuvo una infima variacióne (varió en un 0,88%) con respecto al vigente al 30 de septiembre 2020"]
[]
["d.   Efectivo y equivalentes de efectivo"]
["Se considerarán dentro del concepto de efectivo los saldos en efectivo, disponibilidades en cuentas bancarias y toda inversión de muy alta liquidez, con vencimiento originalmente pactado no superior a tres meses."]
[]
[]
["e.   Inversiones"]
["Las inversiones temporales se valúan de acuerdo a los siguientes criterios de valuación:\n Valores mobiliarios: a su valor de cotización al cierre del año/período menos los gastos estimados de venta. Ver Nota ....\n Colocaciones financieras en moneda local: a su valor nominal más los intereses devengados al cierre del año/período. Ver Nota ....\n Colocaciones financieras en moneda extranjera: a su valor de cotización al cierre del año/período más intereses devengados a ese momento. Ver Nota ....\n Las inversiones no corrientes en sociedades donde no se ejerce el control, se valúan a su valor patrimonial proporcional. Ver Nota ....\n"]
["Obs.: En caso de la existencia de saldos y transacciones con partes relacionadas, la información que corresponda a ser expuesta por la sociedad, se ajustará  a lo requerido por la Norma de Información Financiera N° 7 Revelaciones de partes relacionadas."]
[]
[]
["f. Previsión para cuentas de dudoso cobro/incobrables"]
["En cuanto a la constitución de previsiones, la entidad se encuentra ceñida a lo establecido en el Art. Nº 126 de la Ley Nº 5810/17 del Mercado de Valores. Como mejor practica y cobertura, la entidad mantiene previsiones según su politica de créditos. Las previsiones para cuentas de dudoso cobro se determinan al cierre de cada ejercicio y/o mensualmente sobre la base del estudio de la cartera de créditos realizado con el objeto de determinar la porción no recuperable de las cuentas a cobrar. El valor de la previsión al cierre no deberá ser menor al 40% de la cartera en mora."]
[]
["Situación ","Días de Atraso"]
["Vigente","0 a 60"]
["Vencido","61 a 90"]
["Gestión ","91 a 180"]
["Moroso","181 a 241"]
["Judiciales","Judiciales"]
[]
[]
[]
["g. Inventarios"]
["Las existencias se valúan al menor entre su costo de adquisición o de producción y su valor neto de realización (NIF 12, párrafo 5). Para determinar el consumo (baja de inventarios) se aplicarán las fórmulas de costeo siguientes: FIFO, (Primero Entrado Primero en Salir – PEPS); PPP (Precio Promedio Ponderado); o identificación específica (NIF 12, párrafos 16 a 20). Ver Nota ... No aplica"]
[]
[]
["h. Activos disponibles para la venta"]
["Los activos disponibles para la venta representan bienes que fueron desafectados de la actividad productiva y se mantienen con el único objetivo de ser vendidos.  Los mismos se valúan, sin amortizar, al menor entre el valor de mercado de los mismos y su costo (valor libro) al momento de su designación como disponibles para la venta."]
[]
[]
["i. Previsiones para desvalorización y deterioro de inventarios"]
["Las previsiones para desvalorización y deterioro de inventarios han sido estimadas tomando como base la valorización del stock deteriorado existente al cierre del ejercicio."]
[]
["j. Propiedades, planta y equipo"]
["Las propiedades, planta y equipo se exponen a su costo histórico ajustado por el coeficiente de revalúo emitido por la Autoridad Tributaria, menos la correspondiente depreciación acumulada. El incremento neto por la re-expresión se acredita a la respectiva reserva patrimonial, cuyo saldo puede ser utilizado únicamente para  aumentar el capital."]
["El costo de las mejoras que extienden la vida útil de los bienes o aumentan su capacidad productiva es imputado a las cuentas respectivas del activo. Los gastos de mantenimiento son cargados a resultados."]
["La depreciación es calculada por el método de línea recta, saldo decreciente o suma de unidades (la emisora elige uno de los tres métodos con base en el patrón esperado de beneficios económicos y lo aplica consistentemente de ejercicio a ejercicio a menos que haya cambios significativos en dicho patrón considerado -NIF 11 párrafo 43 y 48). Ver Nota ..."]
["Los efectos de los ajustes sobre Propiedades, Planta y Equipo de operaciones discontinuadas se exponen formando parte de la línea “Resultados sobre actividades discontinuadas neto de impuesto a la renta” en el Estado de Resultados."]
[]
[]
["k. Intangibles"]
["Los intangibles se exponen a su costo incurrido menos las correspondientes amortizaciones acumuladas al cierre del año."]
["Las amortizaciones son calculadas por el método que refleja el patrón de consumo de los beneficios económicos derivados de los intangibles o por el método de línea recta (se explica el método elegido) si el patrón no pudiera ser determinado de forma fiable (NIF 15, párrafo 64). Ver Nota ..."]
["Este rubro incluye costos incurridos por la sociedad relacionados con ingresos futuros."]
[]
[]
["l. Goodwill    N/A"]
["El saldo de esta cuenta representa la diferencia entre el valor pagado y el valor razonable de los activos netos adquiridos por la operación de compra de la subsidiaria – Compañía XX."]
["A los efectos de la determinación del monto recuperable, anualmente se efectúa una evaluación del mismo sobre la base de los flujos netos descontados.  En caso que dichos flujos descontados superen el valor contable se procederá al registro de la correspondiente desvalorización del Goodwill."]
["Las estimaciones sobre los flujos de fondos netos son realizadas por la Gerencia sobre la base de las mejores estimaciones disponibles al momento de la preparación de los presentes estados financieros.  Tal como lo establece la NIF 13 emitida por el Consejo de Contadores Públicos del Paraguay, el Goodwill no se amortiza, sino se afecta a resultados por su deterioro según la NIF 18."]
[]
[]
["m. Reconocimiento de ingresos y egresos"]
["Los ingresos y egresos son reconocidos en función de su devengamiento."]
[]
[]
["n. Impuesto a la renta"]
["El impuesto a la renta que se carga a los resultados del año se basa en la utilidad contable antes de este concepto, ajustada por las partidas que la ley incluye o excluye para la determinación de la utilidad gravable a la que se aplica la tasa legal vigente del impuesto y por el reconocimiento del cargo o el ingreso originado por la aplicación del impuesto diferido, si los hubiere. "]
[]
["o. Restricciones a la distribución de utilidades"]
["Deberá mencionarse cualquier  tipo de restricción sobre la distribución de utilidades como ser restricciones estatutarias o de entes reguladores y asambleas."]
[]
["p. Derechos en Fideicomiso"]
["En caso de que la sociedad cuente con Fideicomisos vigentes, deberá exponer claramente en notas a los Estados Financieros, dentro del rubro correspondiente al cual pertenece el bien que ha sido objeto del fideicomiso, ya sea “Créditos/Inventarios u otros activos”, restando al valor del rubro perteneciente, al igual que en la constitución de Fideicomisos de Garantía."]
["Deberá indicarse además los datos del contrato de fideicomiso, del fiduciario, monto, vencimiento. En caso de emisiones a través de un Patrimonio Autónomo, registradas en la CNV, deberán agregar los datos de registro, destino de los fondos, calificación de riesgo si lo tuviere."]
[]
["q. Otros principios, prácticas y métodos"]
["Seguidos en general para cuantificar, valuar y exponer los hechos y bienes económicos en los estados financieros y que fueran relevantes para el lector de los mismos."]
["Obs.: Cambios en políticas contables y su efecto sobre los estados financieros, como así también las modificaciones o ajustes de la información de ejercicios anteriores deben exponerse conforme a lo requerido por la Norma de Información Financiera N° 6 Utilidad o pérdida neta por el período, errores fundamentales y cambios en políticas contables"]

{"sheet":"Nota 3","index":7,"n_rows":20,"n_cols":5,"rows_kept":20,"cut":false,"hidden":false,"merged":[]}
[{"$f":"Indice!C1","v":"GROW S.A.E.C.A."},null,null,null,"BG"]
["Obs.: Revelar situación en el caso de contar con disponibilidad restringida"]
[]
[]
[]
[]
["NOTA 3 - EFECTIVO Y EQUIVALENTE DE EFECTIVO"]
["En miles de guaranies"]
["La composición de la cuenta es la siguiente:"]
[]
["Concepto",null,{"$f":"IFERROR(IF(Indice!B6=\"\",\"2XX2\",YEAR(Indice!B6)),\"2XX2\")","v":2022},{"$f":"IFERROR(YEAR(Indice!B6-365),\"2XX1\")","v":2021}]
[]
["Caja",null,23102,97615]
["Recaudaciones a depositar",null,34922,38955]
["Bancos Locales - Moneda local Guaraníes",null,361509,996406]
["Bancos Locales - Moneda extranjera Dólares",null,156164,64380]
["Bancos Locales - Moneda extranjera otros"]
["Bancos en el Extranjero - Moneda extranjera Dólares"]
["(nuevas cuentas a incluir)"]
["Total",null,{"$f":"SUM($C$13:C19)","v":575697},{"$f":"SUM($D$13:D19)","v":1197356}]

{"sheet":"Nota 4","index":8,"n_rows":18,"n_cols":4,"rows_kept":18,"cut":false,"hidden":false,"merged":[[3,0,3,2],[6,1,6,2]]}
[{"$f":"Indice!C1","v":"GROW S.A.E.C.A."},null,null,"BG"]
[]
[]
["NOTA 4 - INVERSIONES TEMPORALES"]
[]
["La composición de la cuenta es la siguiente:"]
[null,"En miles de guaranies"]
["Concepto",{"$f":"IFERROR(IF(Indice!B6=\"\",\"2XX2\",YEAR(Indice!B6)),\"2XX2\")","v":2022},{"$f":"IFERROR(YEAR(Indice!B6-365),\"2XX1\")","v":2021}]
["Inversiones en Titulos del Sistema Financiero Local - Moneda Local Guaraníes"]
["Inversiones en Titulos del Sistema Financiero Local - Moneda Extranjera Dólares"]
["Inversiones en Titulos del Sistema Financiero Local - Moneda Extranjera otros"]
["Inversiones en Mercado Bursatil Local - Moneda Local Guaraníes"]
["Inversiones en Mercado Bursatil Local - Moneda Extranjera Dólares"]
["Inversiones en Mercado Bursatil Extranjera - Moneda Extranjera Dólares"]
["Inversiones en Mercado Bursatil Extranjera - Moneda Extranjera otros"]
["Otras inversiones - Moneda Local Guaraníes"]
["Otras inversiones - Moneda Extranjera Dólares"]
["Total",{"$f":"SUM($B$9:B17)","v":0},{"$f":"SUM($C$9:C17)","v":0}]

{"sheet":"Nota 5","index":9,"n_rows":58,"n_cols":10,"rows_kept":58,"cut":false,"hidden":false,"merged":[[6,2,6,3],[34,2,34,3]]}
[{"$f":"Indice!C1","v":"GROW S.A.E.C.A."},null,null,null,null,"BG"]
["   "]
["Se indicarán en este rubro todos los créditos a favor de la empresa provenientes de las  ventas de Mercaderías y/o servicios (atendiendo a la actividades ordinarias de  la empresa), separando las ventas locales en moneda nacional y/o extranjera de las ventas fuera del país en moneda nacional  y/o extranjera"]
[]
["NOTA  5 – CUENTAS POR COBRAR COMERCIALES"]
["Las cuentas a cobrar comerciales a corto plazo se integran como sigue:"]
[null,null,"En miles de guaraníes"]
[null,null,{"$f":"IFERROR(IF(Indice!B6=\"\",\"2XX2\",YEAR(Indice!B6)),\"2XX2\")","v":2022},{"$f":"IFERROR(YEAR(Indice!B6-366),\"2XX1\")","v":2021},null,"Composición de la cartera de créditos por ventas",{"$f":"+Indice!B6","v":"2022-09-30"}]
["Deudores por prestamos otorgados","Moneda Local Guaraníes",5040828,9046662,null,"Situación","Monto","Monto Previsionado","% Previsiones  sobre Cartera "]
["Deudores por prestamos otorgados","Moneda Extranjera Dólares",42859,289951,null,"A  Total Cartera no Vencida",{"$f":"+SUM(C9:C17)+C27+C26","v":21387956},null,null,{"$f":"+G10*I10","v":0}]
["Deudores por Documentos descontado","Moneda Local Guaraníes",3153493,3160797,null,"B. Total Cartera Vencida",{"$f":"+SUM(C20:C23)","v":5454499}]
["Deudores por Documentos descontado","Moneda Extranjera Dólares",191540,65930,null,"Composición Cartera Vencida"]
["Deudores por Venta de bienes adjuducados","Moneda Local Guaraníes",249002,350152,null,"Normal",0]
["Deudores por Venta de bienes adjuducados","Moneda Extranjera Dólares",null,null,null,"Vencidos"]
["Deudores por Tarjeta de credito","Moneda Local Guaraníes",1694415,1235373,null,"Creditos morosos",3788750]
["Intereses a cobrar","Moneda Local Guaraníes",1677318,2656444,null,"En Gestión de Cobro Judicial"]
["Intereses a cobrar","Moneda Extranjera Dólares",16665,28673]
["Intereses a devengar","Moneda Local Guaraníes",-1364727,-2044619,null,"Total de la cartera de créditos (A+B)",{"$f":"G10+G11","v":26842455}]
["Intereses a devengar","Moneda Extranjera Dólares",-7951,-11847]
["Deudores por prestamos vencidos","Moneda Local Guaraníes",4377746,2768792,null,"(-) Total Previsiones",{"$f":"+G15*45%","v":1704937.5}]
["Deudores por prestamos vencidos","Moneda Extranjera otros",324779,331542]
["Intereses a cobrar vencidos","Moneda Local Guaraníes",698873,511463,null,"TOTAL  NETO DE LA CARTERA DE CRÉDITOS",{"$f":"G18+G20","v":28547392.5}]
["Intereses a cobrar vencidos","Moneda Extranjera Dólares",53101,53231,null,null,0]
["Intereses a devengar Vencidos","Moneda Local Guaraníes",-136957,-164505,null,"Observaciones"]
["Intereses a devengar Vencidos","Moneda Extranjera Dólares",null,null,null,"Criterios de Clasificación utilizados","De",null,"A"]
["Deudores varios ","Moneda Extranjera Dólares",8328,8529,null,"Normal",1,null,60]
["Deudores por Venta de Lotes","Moneda Local Guaraníes",9313508,null,null,"Vencido",61,null,90]
["Otros","Moneda Extranjera Dólares",null,null,null,"Moroso en gestion",91,null,180]
["Otros","Moneda Extranjera otros"]
["Menos Previsiones",null,-1704937,-1535691]
["Total",null,{"$f":"+SUM($C$9:C30)","v":23627883},{"$f":"+SUM($D$9:D30)","v":16750877}]
[]
[]
["Las cuentas a cobrar comerciales a largo plazo se integran como sigue:"]
[null,null,"En miles de guaraníes"]
[null,null,{"$f":"IFERROR(IF(Indice!B6=\"\",\"2XX2\",YEAR(Indice!B6)),\"2XX2\")","v":2022},{"$f":"IFERROR(YEAR(Indice!B6-365),\"2XX1\")","v":2021}]
["Deudores por ventas locales","Moneda Local Guaraníes"]
["Deudores por ventas locales","Moneda Extranjera Dólares"]
["Deudores por ventas locales","Moneda Extranjera otros"]
["Deudores por ventas en el exterior","Moneda Local Guaraníes"]
["Deudores por ventas en el exterior","Moneda Extranjera Dólares"]
["Deudores por ventas en el exterior","Moneda Extranjera otros"]
["Deudores - Entidad relacionada","Moneda Local Guaraníes"]
["Deudores - Entidad relacionada","Moneda Extranjera Dólares"]
["Deudores - Entidad relacionada","Moneda Extranjera otros"]
["Cheques adelantados recibidos de clientes","Moneda Local Guaraníes"]
["Cheques adelantados recibidos de clientes","Moneda Extranjera Dólares"]
["Cheques adelantados recibidos de clientes","Moneda Extranjera otros"]
["Deudores en gestión judicial","Moneda Local Guaraníes"]
["Deudores en gestión judicial","Moneda Extranjera Dólares"]
["Deudores en gestión judicial","Moneda Extranjera otros"]
["Cheques rechazados","Moneda Local Guaraníes"]
["Cheques rechazados","Moneda Extranjera Dólares"]
["Otros","Moneda Local Guaraníes"]
["Otros","Moneda Extranjera Dólares"]
["Otros","Moneda Extranjera otros"]
["Menos Previsiones"]
["Total",null,{"$f":"+SUM($C$37:C57)","v":0},{"$f":"+SUM($D$37:D57)","v":0}]

{"sheet":"Nota 6","index":10,"n_rows":17,"n_cols":7,"rows_kept":17,"cut":false,"hidden":false,"merged":[]}
[{"$f":"Indice!C1","v":"GROW S.A.E.C.A."},null,null,"BG"]
[]
[]
["NOTA 6 - OTROS CRÉDITOS"]
["En miles de guaranies"]
["El rubro de otros créditos se compone como sigue:"]
[]
["Corrientes",null,null,null,"No corrientes"]
[]
["Concepto",{"$f":"IFERROR(IF(Indice!B6=\"\",\"2XX2\",YEAR(Indice!B6)),\"2XX2\")","v":2022},{"$f":"IFERROR(YEAR(Indice!B6-365),\"2XX1\")","v":2021},null,"Concepto",{"$f":"IFERROR(IF(Indice!B6=\"\",\"2XX2\",YEAR(Indice!B6)),\"2XX2\")","v":2022},{"$f":"IFERROR(YEAR(Indice!B6-365),\"2XX1\")","v":2021}]
["Anticipos",429304,457293,null,"Garantía de Alquiler",13755,13954]
["Gastos pagados por adelantado",{"$f":"106118+11053-13755","v":103416},15851,null,"I.V.A. Crédito fiscal"]
["Anticipo Impuesto a la Renta",149791,0,null,"Anticipos a proveedores "]
["Retención Impuesto a la Renta",null,null,null,"(nuevas cuentas a incluir)"]
["Retención Impuesto al Valor agregado",null,null,null,"Total",{"$f":"SUM(F11:F14)","v":13755},{"$f":"SUM(G11:G14)","v":13954}]
["(nuevas cuentas a incluir)"]
["Total",{"$f":"SUM($B$11:B16)","v":682511},{"$f":"SUM($C$11:C16)","v":473144}]

{"sheet":"Nota 7","index":11,"n_rows":15,"n_cols":4,"rows_kept":15,"cut":false,"hidden":true,"merged":[[6,1,6,2],[5,0,5,6],[3,0,3,2]]}
[{"$f":"Indice!C1","v":"GROW S.A.E.C.A."},null,null,"BG"]
[]
[]
["NOTA 7 – INVENTARIOS"]
[]
["Los bienes de cambio están compuestos de la siguiente manera:"]
[null,"En miles de guaranies"]
["Concepto",{"$f":"IFERROR(IF(Indice!B6=\"\",\"2XX2\",YEAR(Indice!B6)),\"2XX2\")","v":2022},{"$f":"IFERROR(YEAR(Indice!B6-365),\"2XX1\")","v":2021}]
["Mercaderías"]
["Productos terminados"]
["Productos en proceso"]
["Materia prima"]
["(nuevas cuentas a incluir)"]
["(-) Previsión para desvalorización y deterioro de inventario"]
["Total ",{"$f":"SUM(B9:B12)","v":0},{"$f":"SUM(C9:C12)","v":0}]

{"sheet":"Nota 8","index":12,"n_rows":18,"n_cols":12,"rows_kept":18,"cut":false,"hidden":false,"merged":[[3,0,3,5]]}
[{"$f":"Indice!C1","v":"GROW S.A.E.C.A."},null,null,"BG"]
[]
[]
["Nota 8 - INVERSIONES EN ASOCIADAS"]
["En miles de guaraníes"]
["Las inversiones en sociedades donde no se ejerce control se describen a continuación"]
["Periodo",{"$f":"IFERROR(IF(Indice!B6=\"\",\"2XX2\",YEAR(Indice!B6)),\"2XX2\")","v":2022},{"$f":"IFERROR(YEAR(Indice!B6-366),\"2XX1\")","v":2021}]
["Total Inversión",302550,68730,"<-- Indicar Monto"]
[]
["a) Datos sobre la sociedad:",null,null,null,null,null,"a) Datos sobre la inversión:"]
[null,null,null,{"$f":"IFERROR(IF(Indice!B6=\"\",\"2XX2\",YEAR(Indice!B6)),\"2XX2\")","v":2022}]
["Nombre de Sociedad","RUC","Cantidad de acciones","Total Patrimonio neto","Total del resultado",null,"Cantidad de acciones","Participación sobre los votos (%)","Total Inversión (miles de Gs)","Participación sobre el Patrimonio Neto (%)","Total valuación patrimonial proporcional","Resultado sobre inversiones"]
["Banco Continental SAECA","80019270-2",74,18980,0,null,74,6.9999999999999999E-4,11600000,6.9999999999999999E-6,{"$f":"J13*D13","v":0.13286000000000001},{"$f":"J13*E13","v":0}]
["Banco Rio SAECA","\n80002227-0",318,50500,null,null,318,9.4999999999999998E-3,50500,null,{"$f":"J14*D14","v":0},{"$f":"J14*E14","v":0}]
["Credipar s.a.","80054423-4",1310,233070,null,null,null,null,null,null,0,0]
[null,null,null,null,null,null,null,null,null,null,0,0]
[null,null,null,null,null,null,null,null,null,null,0,0]
[null,null,null,null,null,null,null,null,null,null,0,0]

{"sheet":"Nota 9","index":13,"n_rows":25,"n_cols":13,"rows_kept":25,"cut":false,"hidden":false,"merged":[[11,0,11,12]]}
[{"$f":"Indice!C1","v":"GROW S.A.E.C.A."},null,null,null,null,null,null,null,null,null,null,"BG"]
[]
[]
[]
["Obs.:"]
["Incluir aclaraciones en los siguientes casos:"]
["1.      Cuando los bienes de uso tienen alguna restricción sobre su utilización, como por ejemplo cuando están garantizando obligaciones. En su caso también hacer referencia a la nota correspondiente."]
["2.      Cuando exista alguna previsión por desvalorización (“deterioro”), detallando la evolución de la misma en el transcurso del año."]
["3.      Si se están capitalizando intereses al costo de bienes de uso. En su caso deberá aclararse la tasa utilizada para la capitalización."]
["Ver adicionalmente Norma de Información Financiera N° 11 Propiedades, planta y equipo"]
[]
["NOTA 9 - PROPIEDADES, PLANTA Y EQUIPO - NETO"]
["En miles de guaraníes",null,null,null,null,null,null,null,null,-1]
[]
[null,"Costo histórico revaluado al inicio del año","Adquisiciones","Bajas","Revalúo del año","Valor de origen revaluado al final del año","Depreciación acumulada revaluada al inicio del año","Depreciación del año","Bajas de depreciaciones acumuladas","Revalúo depreciación acumulada del año","Depreciación acumulada revaluada al final del año","Valor neto contable"]
[null,null,null,null,null,null,null,null,null,null,null,{"$f":"IFERROR(IF(Indice!B6=\"\",\"2XX2\",YEAR(Indice!B6)),\"2XX2\")","v":2022},{"$f":"IFERROR(YEAR(Indice!B6-366),\"2XX1\")","v":2021}]
["Instalaciones",{"$f":"+M17","v":56570},null,null,0,null,null,{"$f":"3587+1794","v":5381},null,null,null,{"$f":"+B17+C17-D17+E17-H17","v":51189},56570]
["Rodados",{"$f":"+M18","v":53111},null,null,null,null,null,{"$f":"5058+2529","v":7587},null,null,null,{"$f":"+B18+C18-D18+E18-H18","v":45524},53111]
["Equipos de computación",27796,0,null,0,null,null,{"$f":"9431+4715","v":14146},null,null,null,13650,27796]
["Muebles y útiles",159241,181,null,0,null,null,{"$f":"9511+4755","v":14266},null,null,null,145156,159241]
["Equipos de comunicación",0,null,null,0,null,null,null,null,null,null,0,0]
["Maquinarias y herramientas",0,null,null,null,null,null,null,null,null,null,0,0]
["Obras en curso",0,null,null,null,null,null,null,null,null,null,0,0]
["Mejoras en propiedad de terceros",210024,null,null,0,null,null,{"$f":"15403+5355+1667+679","v":23104},null,null,null,186920,210024]
["Totales",{"$f":"+SUM(B17:B24)","v":506742},181,0,0,0,0,64484,null,null,null,{"$f":"SUM($L$17:L24)","v":442439},{"$f":"SUM($M$17:M24)","v":506742}]

{"sheet":"Nota 10","index":14,"n_rows":20,"n_cols":3,"rows_kept":20,"cut":false,"hidden":false,"merged":[[3,70,3,75],[3,76,3,81],[3,82,3,87],[3,88,3,93],[3,94,3,99],[3,100,3,105],[3,34,3,39],[3,40,3,45],[3,46,3,51],[3,52,3,57],[3,58,3,63],[3,64,3,69],[3,4,3,9],[3,10,3,15],[3,16,3,21],[3,22,3,27],[3,28,3,33],[3,286,3,291],[3,292,3,297],[3,298,3,303],[3,304,3,309],[3,310,3,315],[3,316,3,321],[3,250,3,255],[3,256,3,261],[3,262,3,267],[3,268,3,273],[3,274,3,279],[3,280,3,285],[3,214,3,219],[3,220,3,225],[3,226,3,231],[3,232,3,237],[3,238,3,243],[3,244,3,249],[3,178,3,183],[3,184,3,189],[3,190,3,195],[3,196,3,201],[3,202,3,207],[3,208,3,213],[3,142,3,147],[3,148,3,153],[3,154,3,159],[3,160,3,165],[3,166,3,171],[3,172,3,177],[3,106,3,111],[3,112,3,117],[3,118,3,123],[3,124,3,129],[3,130,3,135],[3,136,3,141],[3,502,3,507],[3,508,3,513],[3,514,3,519],[3,520,3,525],[3,526,3,531],[3,532,3,537],[3,466,3,471],[3,472,3,477],[3,478,3,483],[3,484,3,489],[3,490,3,495],[3,496,3,501],[3,430,3,435],[3,436,3,441],[3,442,3,447],[3,448,3,453],[3,454,3,459],[3,460,3,465],[3,394,3,399],[3,400,3,405],[3,406,3,411],[3,412,3,417],[3,418,3,423],[3,424,3,429],[3,358,3,363],[3,364,3,369],[3,370,3,375],[3,376,3,381],[3,382,3,387],[3,388,3,393],[3,322,3,327],[3,328,3,333],[3,334,3,339],[3,340,3,345],[3,346,3,351],[3,352,3,357],[3,718,3,723],[3,724,3,729],[3,730,3,735],[3,736,3,741],[3,742,3,747],[3,748,3,753],[3,682,3,687],[3,688,3,693],[3,694,3,699],[3,700,3,705],[3,706,3,711],[3,712,3,717],[3,646,3,651],[3,652,3,657],[3,658,3,663],[3,664,3,669],[3,670,3,675],[3,676,3,681],[3,610,3,615],[3,616,3,621],[3,622,3,627],[3,628,3,633],[3,634,3,639],[3,640,3,645],[3,574,3,579],[3,580,3,585],[3,586,3,591],[3,592,3,597],[3,598,3,603],[3,604,3,609],[3,538,3,543],[3,544,3,549],[3,550,3,555],[3,556,3,561],[3,562,3,567],[3,568,3,573],[3,934,3,939],[3,940,3,945],[3,946,3,951],[3,952,3,957],[3,958,3,963],[3,964,3,969],[3,898,3,903],[3,904,3,909],[3,910,3,915],[3,916,3,921],[3,922,3,927],[3,928,3,933],[3,862,3,867],[3,868,3,873],[3,874,3,879],[3,880,3,885],[3,886,3,891],[3,892,3,897],[3,826,3,831],[3,832,3,837],[3,838,3,843],[3,844,3,849],[3,850,3,855],[3,856,3,861],[3,790,3,795],[3,796,3,801],[3,802,3,807],[3,808,3,813],[3,814,3,819],[3,820,3,825],[3,754,3,759],[3,760,3,765],[3,766,3,771],[3,772,3,777],[3,778,3,783],[3,784,3,789],[3,1150,3,1155],[3,1156,3,1161],[3,1162,3,1167],[3,1168,3,1173],[3,1174,3,1179],[3,1180,3,1185],[3,1114,3,1119],[3,1120,3,1125],[3,1126,3,1131],[3,1132,3,1137],[3,1138,3,1143],[3,1144,3,1149],[3,1078,3,1083],[3,1084,3,1089],[3,1090,3,1095],[3,1096,3,1101],[3,1102,3,1107],[3,1108,3,1113],[3,1042,3,1047],[3,1048,3,1053],[3,1054,3,1059],[3,1060,3,1065],[3,1066,3,1071],[3,1072,3,1077],[3,1006,3,1011],[3,1012,3,1017],[3,1018,3,1023],[3,1024,3,1029],[3,1030,3,1035],[3,1036,3,1041],[3,970,3,975],[3,976,3,981],[3,982,3,987],[3,988,3,993],[3,994,3,999],[3,1000,3,1005],[3,1366,3,1371],[3,1372,3,1377],[3,1378,3,1383],[3,1384,3,1389],[3,1390,3,1395],[3,1396,3,1401],[3,1330,3,1335],[3,1336,3,1341],[3,1342,3,1347],[3,1348,3,1353],[3,1354,3,1359],[3,1360,3,1365],[3,1294,3,1299],[3,1300,3,1305],[3,1306,3,1311],[3,1312,3,1317],[3,1318,3,1323],[3,1324,3,1329],[3,1258,3,1263],[3,1264,3,1269],[3,1270,3,1275],[3,1276,3,1281],[3,1282,3,1287],[3,1288,3,1293],[3,1222,3,1227],[3,1228,3,1233],[3,1234,3,1239],[3,1240,3,1245],[3,1246,3,1251],[3,1252,3,1257],[3,1186,3,1191],[3,1192,3,1197],[3,1198,3,1203],[3,1204,3,1209],[3,1210,3,1215],[3,1216,3,1221],[3,1582,3,1587],[3,1588,3,1593],[3,1594,3,1599],[3,1600,3,1605],[3,1606,3,1611],[3,1612,3,1617],[3,1546,3,1551],[3,1552,3,1557],[3,1558,3,1563],[3,1564,3,1569],[3,1570,3,1575],[3,1576,3,1581],[3,1510,3,1515],[3,1516,3,1521],[3,1522,3,1527],[3,1528,3,1533],[3,1534,3,1539],[3,1540,3,1545],[3,1474,3,1479],[3,1480,3,1485],[3,1486,3,1491],[3,1492,3,1497],[3,1498,3,1503],[3,1504,3,1509],[3,1438,3,1443],[3,1444,3,1449],[3,1450,3,1455],[3,1456,3,1461],[3,1462,3,1467],[3,1468,3,1473],[3,1402,3,1407],[3,1408,3,1413],[3,1414,3,1419],[3,1420,3,1425],[3,1426,3,1431],[3,1432,3,1437],[3,1798,3,1803],[3,1804,3,1809],[3,1810,3,1815],[3,1816,3,1821],[3,1822,3,1827],[3,1828,3,1833],[3,1762,3,1767],[3,1768,3,1773],[3,1774,3,1779],[3,1780,3,1785],[3,1786,3,1791],[3,1792,3,1797],[3,1726,3,1731],[3,1732,3,1737],[3,1738,3,1743],[3,1744,3,1749],[3,1750,3,1755],[3,1756,3,1761],[3,1690,3,1695],[3,1696,3,1701],[3,1702,3,1707],[3,1708,3,1713],[3,1714,3,1719],[3,1720,3,1725],[3,1654,3,1659],[3,1660,3,1665],[3,1666,3,1671],[3,1672,3,1677],[3,1678,3,1683],[3,1684,3,1689],[3,1618,3,1623],[3,1624,3,1629],[3,1630,3,1635],[3,1636,3,1641],[3,1642,3,1647],[3,1648,3,1653],[3,2014,3,2019],[3,2020,3,2025],[3,2026,3,2031],[3,2032,3,2037],[3,2038,3,2043],[3,2044,3,2049],[3,1978,3,1983],[3,1984,3,1989],[3,1990,3,1995],[3,1996,3,2001],[3,2002,3,2007],[3,2008,3,2013],[3,1942,3,1947],[3,1948,3,1953],[3,1954,3,1959],[3,1960,3,1965],[3,1966,3,1971],[3,1972,3,1977],[3,1906,3,1911],[3,1912,3,1917],[3,1918,3,1923],[3,1924,3,1929],[3,1930,3,1935],[3,1936,3,1941],[3,1870,3,1875],[3,1876,3,1881],[3,1882,3,1887],[3,1888,3,1893],[3,1894,3,1899],[3,1900,3,1905],[3,1834,3,1839],[3,1840,3,1845],[3,1846,3,1851],[3,1852,3,1857],[3,1858,3,1863],[3,1864,3,1869],[3,2230,3,2235],[3,2236,3,2241],[3,2242,3,2247],[3,2248,3,2253],[3,2254,3,2259],[3,2260,3,2265],[3,2194,3,2199],[3,2200,3,2205],[3,2206,3,2211],[3,2212,3,2217],[3,2218,3,2223],[3,2224,3,2229],[3,2158,3,2163],[3,2164,3,2169],[3,2170,3,2175],[3,2176,3,2181],[3,2182,3,2187],[3,2188,3,2193],[3,2122,3,2127],[3,2128,3,2133],[3,2134,3,2139],[3,2140,3,2145],[3,2146,3,2151],[3,2152,3,2157],[3,2086,3,2091],[3,2092,3,2097],[3,2098,3,2103],[3,2104,3,2109],[3,2110,3,2115],[3,2116,3,2121],[3,2050,3,2055],[3,2056,3,2061],[3,2062,3,2067],[3,2068,3,2073],[3,2074,3,2079],[3,2080,3,2085],[3,2446,3,2451],[3,2452,3,2457],[3,2458,3,2463],[3,2464,3,2469],[3,2470,3,2475],[3,2476,3,2481],[3,2410,3,2415],[3,2416,3,2421],[3,2422,3,2427],[3,2428,3,2433],[3,2434,3,2439],[3,2440,3,2445],[3,2374,3,2379],[3,2380,3,2385],[3,2386,3,2391],[3,2392,3,2397],[3,2398,3,2403],[3,2404,3,2409],[3,2338,3,2343],[3,2344,3,2349],[3,2350,3,2355],[3,2356,3,2361],[3,2362,3,2367],[3,2368,3,2373],[3,2302,3,2307],[3,2308,3,2313],[3,2314,3,2319],[3,2320,3,2325],[3,2326,3,2331],[3,2332,3,2337],[3,2266,3,2271],[3,2272,3,2277],[3,2278,3,2283],[3,2284,3,2289],[3,2290,3,2295],[3,2296,3,2301],[3,2662,3,2667],[3,2668,3,2673],[3,2674,3,2679],[3,2680,3,2685],[3,2686,3,2691],[3,2692,3,2697],[3,2626,3,2631],[3,2632,3,2637],[3,2638,3,2643],[3,2644,3,2649],[3,2650,3,2655],[3,2656,3,2661],[3,2590,3,2595],[3,2596,3,2601],[3,2602,3,2607],[3,2608,3,2613],[3,2614,3,2619],[3,2620,3,2625],[3,2554,3,2559],[3,2560,3,2565],[3,2566,3,2571],[3,2572,3,2577],[3,2578,3,2583],[3,2584,3,2589],[3,2518,3,2523],[3,2524,3,2529],[3,2530,3,2535],[3,2536,3,2541],[3,2542,3,2547],[3,2548,3,2553],[3,2482,3,2487],[3,2488,3,2493],[3,2494,3,2499],[3,2500,3,2505],[3,2506,3,2511],[3,2512,3,2517],[3,2878,3,2883],[3,2884,3,2889],[3,2890,3,2895],[3,2896,3,2901],[3,2902,3,2907],[3,2908,3,2913],[3,2842,3,2847],[3,2848,3,2853],[3,2854,3,2859],[3,2860,3,2865],[3,2866,3,2871],[3,2872,3,2877],[3,2806,3,2811],[3,2812,3,2817],[3,2818,3,2823],[3,2824,3,2829],[3,2830,3,2835],[3,2836,3,2841],[3,2770,3,2775],[3,2776,3,2781],[3,2782,3,2787],[3,2788,3,2793],[3,2794,3,2799],[3,2800,3,2805],[3,2734,3,2739],[3,2740,3,2745],[3,2746,3,2751],[3,2752,3,2757],[3,2758,3,2763],[3,2764,3,2769],[3,2698,3,2703],[3,2704,3,2709],[3,2710,3,2715],[3,2716,3,2721],[3,2722,3,2727],[3,2728,3,2733],[3,3094,3,3099],[3,3100,3,3105],[3,3106,3,3111],[3,3112,3,3117],[3,3118,3,3123],[3,3124,3,3129],[3,3058,3,3063],[3,3064,3,3069],[3,3070,3,3075],[3,3076,3,3081],[3,3082,3,3087],[3,3088,3,3093],[3,3022,3,3027],[3,3028,3,3033],[3,3034,3,3039],[3,3040,3,3045],[3,3046,3,3051],[3,3052,3,3057],[3,2986,3,2991],[3,2992,3,2997],[3,2998,3,3003],[3,3004,3,3009],[3,3010,3,3015],[3,3016,3,3021],[3,2950,3,2955],[3,2956,3,2961],[3,2962,3,2967],[3,2968,3,2973],[3,2974,3,2979],[3,2980,3,2985],[3,2914,3,2919],[3,2920,3,2925],[3,2926,3,2931],[3,2932,3,2937],[3,2938,3,2943],[3,2944,3,2949],[3,3310,3,3315],[3,3316,3,3321],[3,3322,3,3327],[3,3328,3,3333],[3,3334,3,3339],[3,3340,3,3345],[3,3274,3,3279],[3,3280,3,3285],[3,3286,3,3291],[3,3292,3,3297],[3,3298,3,3303],[3,3304,3,3309],[3,3238,3,3243],[3,3244,3,3249],[3,3250,3,3255],[3,3256,3,3261],[3,3262,3,3267],[3,3268,3,3273],[3,3202,3,3207],[3,3208,3,3213],[3,3214,3,3219],[3,3220,3,3225],[3,3226,3,3231],[3,3232,3,3237],[3,3166,3,3171],[3,3172,3,3177],[3,3178,3,3183],[3,3184,3,3189],[3,3190,3,3195],[3,3196,3,3201],[3,3130,3,3135],[3,3136,3,3141],[3,3142,3,3147],[3,3148,3,3153],[3,3154,3,3159],[3,3160,3,3165],[3,3526,3,3531],[3,3532,3,3537],[3,3538,3,3543],[3,3544,3,3549],[3,3550,3,3555],[3,3556,3,3561],[3,3490,3,3495],[3,3496,3,3501],[3,3502,3,3507],[3,3508,3,3513],[3,3514,3,3519],[3,3520,3,3525],[3,3454,3,3459],[3,3460,3,3465],[3,3466,3,3471],[3,3472,3,3477],[3,3478,3,3483],[3,3484,3,3489],[3,3418,3,3423],[3,3424,3,3429],[3,3430,3,3435],[3,3436,3,3441],[3,3442,3,3447],[3,3448,3,3453],[3,3382,3,3387],[3,3388,3,3393],[3,3394,3,3399],[3,3400,3,3405],[3,3406,3,3411],[3,3412,3,3417],[3,3346,3,3351],[3,3352,3,3357],[3,3358,3,3363],[3,3364,3,3369],[3,3370,3,3375],[3,3376,3,3381],[3,3742,3,3747],[3,3748,3,3753],[3,3754,3,3759],[3,3760,3,3765],[3,3766,3,3771],[3,3772,3,3777],[3,3706,3,3711],[3,3712,3,3717],[3,3718,3,3723],[3,3724,3,3729],[3,3730,3,3735],[3,3736,3,3741],[3,3670,3,3675],[3,3676,3,3681],[3,3682,3,3687],[3,3688,3,3693],[3,3694,3,3699],[3,3700,3,3705],[3,3634,3,3639],[3,3640,3,3645],[3,3646,3,3651],[3,3652,3,3657],[3,3658,3,3663],[3,3664,3,3669],[3,3598,3,3603],[3,3604,3,3609],[3,3610,3,3615],[3,3616,3,3621],[3,3622,3,3627],[3,3628,3,3633],[3,3562,3,3567],[3,3568,3,3573],[3,3574,3,3579],[3,3580,3,3585],[3,3586,3,3591],[3,3592,3,3597],[3,3958,3,3963],[3,3964,3,3969],[3,3970,3,3975],[3,3976,3,3981],[3,3982,3,3987],[3,3988,3,3993],[3,3922,3,3927],[3,3928,3,3933],[3,3934,3,3939],[3,3940,3,3945],[3,3946,3,3951],[3,3952,3,3957],[3,3886,3,3891],[3,3892,3,3897],[3,3898,3,3903],[3,3904,3,3909],[3,3910,3,3915],[3,3916,3,3921],[3,3850,3,3855],[3,3856,3,3861],[3,3862,3,3867],[3,3868,3,3873],[3,3874,3,3879],[3,3880,3,3885],[3,3814,3,3819],[3,3820,3,3825],[3,3826,3,3831],[3,3832,3,3837],[3,3838,3,3843],[3,3844,3,3849],[3,3778,3,3783],[3,3784,3,3789],[3,3790,3,3795],[3,3796,3,3801],[3,3802,3,3807],[3,3808,3,3813],[3,4174,3,4179],[3,4180,3,4185],[3,4186,3,4191],[3,4192,3,4197],[3,4198,3,4203],[3,4204,3,4209],[3,4138,3,4143],[3,4144,3,4149],[3,4150,3,4155],[3,4156,3,4161],[3,4162,3,4167],[3,4168,3,4173],[3,4102,3,4107],[3,4108,3,4113],[3,4114,3,4119],[3,4120,3,4125],[3,4126,3,4131],[3,4132,3,4137],[3,4066,3,4071],[3,4072,3,4077],[3,4078,3,4083],[3,4084,3,4089],[3,4090,3,4095],[3,4096,3,4101],[3,4030,3,4035],[3,4036,3,4041],[3,4042,3,4047],[3,4048,3,4053],[3,4054,3,4059],[3,4060,3,4065],[3,3994,3,3999],[3,4000,3,4005],[3,4006,3,4011],[3,4012,3,4017],[3,4018,3,4023],[3,4024,3,4029],[3,4390,3,4395],[3,4396,3,4401],[3,4402,3,4407],[3,4408,3,4413],[3,4414,3,4419],[3,4420,3,4425],[3,4354,3,4359],[3,4360,3,4365],[3,4366,3,4371],[3,4372,3,4377],[3,4378,3,4383],[3,4384,3,4389],[3,4318,3,4323],[3,4324,3,4329],[3,4330,3,4335],[3,4336,3,4341],[3,4342,3,4347],[3,4348,3,4353],[3,4282,3,4287],[3,4288,3,4293],[3,4294,3,4299],[3,4300,3,4305],[3,4306,3,4311],[3,4312,3,4317],[3,4246,3,4251],[3,4252,3,4257],[3,4258,3,4263],[3,4264,3,4269],[3,4270,3,4275],[3,4276,3,4281],[3,4210,3,4215],[3,4216,3,4221],[3,4222,3,4227],[3,4228,3,4233],[3,4234,3,4239],[3,4240,3,4245],[3,4606,3,4611],[3,4612,3,4617],[3,4618,3,4623],[3,4624,3,4629],[3,4630,3,4635],[3,4636,3,4641],[3,4570,3,4575],[3,4576,3,4581],[3,4582,3,4587],[3,4588,3,4593],[3,4594,3,4599],[3,4600,3,4605],[3,4534,3,4539],[3,4540,3,4545],[3,4546,3,4551],[3,4552,3,4557],[3,4558,3,4563],[3,4564,3,4569],[3,4498,3,4503],[3,4504,3,4509],[3,4510,3,4515],[3,4516,3,4521],[3,4522,3,4527],[3,4528,3,4533],[3,4462,3,4467],[3,4468,3,4473],[3,4474,3,4479],[3,4480,3,4485],[3,4486,3,4491],[3,4492,3,4497],[3,4426,3,4431],[3,4432,3,4437],[3,4438,3,4443],[3,4444,3,4449],[3,4450,3,4455],[3,4456,3,4461],[3,4822,3,4827],[3,4828,3,4833],[3,4834,3,4839],[3,4840,3,4845],[3,4846,3,4851],[3,4852,3,4857],[3,4786,3,4791],[3,4792,3,4797],[3,4798,3,4803],[3,4804,3,4809],[3,4810,3,4815],[3,4816,3,4821],[3,4750,3,4755],[3,4756,3,4761],[3,4762,3,4767],[3,4768,3,4773],[3,4774,3,4779],[3,4780,3,4785],[3,4714,3,4719],[3,4720,3,4725],[3,4726,3,4731],[3,4732,3,4737],[3,4738,3,4743],[3,4744,3,4749],[3,4678,3,4683],[3,4684,3,4689],[3,4690,3,4695],[3,4696,3,4701],[3,4702,3,4707],[3,4708,3,4713],[3,4642,3,4647],[3,4648,3,4653],[3,4654,3,4659],[3,4660,3,4665],[3,4666,3,4671],[3,4672,3,4677],[3,5038,3,5043],[3,5044,3,5049],[3,5050,3,5055],[3,5056,3,5061],[3,5062,3,5067],[3,5068,3,5073],[3,5002,3,5007],[3,5008,3,5013],[3,5014,3,5019],[3,5020,3,5025],[3,5026,3,5031],[3,5032,3,5037],[3,4966,3,4971],[3,4972,3,4977],[3,4978,3,4983],[3,4984,3,4989],[3,4990,3,4995],[3,4996,3,5001],[3,4930,3,4935],[3,4936,3,4941],[3,4942,3,4947],[3,4948,3,4953],[3,4954,3,4959],[3,4960,3,4965],[3,4894,3,4899],[3,4900,3,4905],[3,4906,3,4911],[3,4912,3,4917],[3,4918,3,4923],[3,4924,3,4929],[3,4858,3,4863],[3,4864,3,4869],[3,4870,3,4875],[3,4876,3,4881],[3,4882,3,4887],[3,4888,3,4893],[3,5254,3,5259],[3,5260,3,5265],[3,5266,3,5271],[3,5272,3,5277],[3,5278,3,5283],[3,5284,3,5289],[3,5218,3,5223],[3,5224,3,5229],[3,5230,3,5235],[3,5236,3,5241],[3,5242,3,5247],[3,5248,3,5253],[3,5182,3,5187],[3,5188,3,5193],[3,5194,3,5199],[3,5200,3,5205],[3,5206,3,5211],[3,5212,3,5217],[3,5146,3,5151],[3,5152,3,5157],[3,5158,3,5163],[3,5164,3,5169],[3,5170,3,5175],[3,5176,3,5181],[3,5110,3,5115],[3,5116,3,5121],[3,5122,3,5127],[3,5128,3,5133],[3,5134,3,5139],[3,5140,3,5145],[3,5074,3,5079],[3,5080,3,5085],[3,5086,3,5091],[3,5092,3,5097],[3,5098,3,5103],[3,5104,3,5109],[3,5470,3,5475],[3,5476,3,5481],[3,5482,3,5487],[3,5488,3,5493],[3,5494,3,5499],[3,5500,3,5505],[3,5434,3,5439],[3,5440,3,5445],[3,5446,3,5451],[3,5452,3,5457],[3,5458,3,5463],[3,5464,3,5469],[3,5398,3,5403],[3,5404,3,5409],[3,5410,3,5415],[3,5416,3,5421],[3,5422,3,5427],[3,5428,3,5433],[3,5362,3,5367],[3,5368,3,5373],[3,5374,3,5379],[3,5380,3,5385],[3,5386,3,5391],[3,5392,3,5397],[3,5326,3,5331],[3,5332,3,5337],[3,5338,3,5343],[3,5344,3,5349],[3,5350,3,5355],[3,5356,3,5361],[3,5290,3,5295],[3,5296,3,5301],[3,5302,3,5307],[3,5308,3,5313],[3,5314,3,5319],[3,5320,3,5325],[3,5686,3,5691],[3,5692,3,5697],[3,5698,3,5703],[3,5704,3,5709],[3,5710,3,5715],[3,5716,3,5721],[3,5650,3,5655],[3,5656,3,5661],[3,5662,3,5667],[3,5668,3,5673],[3,5674,3,5679],[3,5680,3,5685],[3,5614,3,5619],[3,5620,3,5625],[3,5626,3,5631],[3,5632,3,5637],[3,5638,3,5643],[3,5644,3,5649],[3,5578,3,5583],[3,5584,3,5589],[3,5590,3,5595],[3,5596,3,5601],[3,5602,3,5607],[3,5608,3,5613],[3,5542,3,5547],[3,5548,3,5553],[3,5554,3,5559],[3,5560,3,5565],[3,5566,3,5571],[3,5572,3,5577],[3,5506,3,5511],[3,5512,3,5517],[3,5518,3,5523],[3,5524,3,5529],[3,5530,3,5535],[3,5536,3,5541],[3,5902,3,5907],[3,5908,3,5913],[3,5914,3,5919],[3,5920,3,5925],[3,5926,3,5931],[3,5932,3,5937],[3,5866,3,5871],[3,5872,3,5877],[3,5878,3,5883],[3,5884,3,5889],[3,5890,3,5895],[3,5896,3,5901],[3,5830,3,5835],[3,5836,3,5841],[3,5842,3,5847],[3,5848,3,5853],[3,5854,3,5859],[3,5860,3,5865],[3,5794,3,5799],[3,5800,3,5805],[3,5806,3,5811],[3,5812,3,5817],[3,5818,3,5823],[3,5824,3,5829],[3,5758,3,5763],[3,5764,3,5769],[3,5770,3,5775],[3,5776,3,5781],[3,5782,3,5787],[3,5788,3,5793],[3,5722,3,5727],[3,5728,3,5733],[3,5734,3,5739],[3,5740,3,5745],[3,5746,3,5751],[3,5752,3,5757],[3,6118,3,6123],[3,6124,3,6129],[3,6130,3,6135],[3,6136,3,6141],[3,6142,3,6147],[3,6148,3,6153],[3,6082,3,6087],[3,6088,3,6093],[3,6094,3,6099],[3,6100,3,6105],[3,6106,3,6111]],"merged_total":13651,"flags":["merged_cut"]}
[{"$f":"Indice!C1","v":"GROW S.A.E.C.A."},null,"BG"]
[]
[]
["NOTA 10 – ACTIVOS DISPONIBLES PARA LA VENTA"]
[null,"En miles de guaranies"]
[null,{"$f":"IFERROR(IF(Indice!B6=\"\",\"2XX2\",YEAR(Indice!B6)),\"2XX2\")","v":2022},{"$f":"IFERROR(YEAR(Indice!B6-366),\"2XX1\")","v":2021}]
["Propiedad, planta y equipo"]
["(Maquinarias)",49652]
["Total",{"$f":"B8","v":49652},{"$f":"C8","v":0}]
[]
["Activos intangibles"]
["(Detallar activos intangibles)"]
["Total",{"$f":"B12","v":0},{"$f":"C12","v":0}]
[]
["Inversiones"]
["Inversiones Inmobiliarias",{"$f":"485208+758171","v":1243379},2229250]
["Costo Diferido de inmuebles vendidos ",1350751,277117]
["Total",{"$f":"B16+B17","v":2594130},{"$f":"C16+C17","v":2506367}]
[]
["Total general",{"$f":"B9+B13+B18","v":2643782},{"$f":"C9+C13+C18","v":2506367}]

{"sheet":"Nota 11","index":15,"n_rows":10,"n_cols":6,"rows_kept":10,"cut":false,"hidden":false,"merged":[[3,0,3,3],[4,1,4,2]]}
[{"$f":"Indice!C1","v":"GROW S.A.E.C.A."},null,null,null,null,"BG"]
[]
[]
["NOTA 11 – ACTIVOS INTANGIBLES"]
[null,"En miles de guaranies"]
["Activos intangibles",{"$f":"IFERROR(IF(Indice!B6=\"\",\"2XX2\",YEAR(Indice!B6)),\"2XX2\")","v":2022},{"$f":"IFERROR(YEAR(Indice!B6-366),\"2XX1\")","v":2021}]
["(Gastos de Constitución )",19852,19852]
["Menos amortización acumulada",-19852,-19852]
[]
["Total general",{"$f":"SUM(B7:B9)","v":0},{"$f":"SUM(C7:C9)","v":0}]

{"sheet":"Nota 12","index":16,"n_rows":11,"n_cols":5,"rows_kept":11,"cut":false,"hidden":true,"merged":[[5,1,5,2]]}
[{"$f":"Indice!C1","v":"GROW S.A.E.C.A."},null,null,null,"BG"]
[]
[]
[]
["NOTA 12 – GOODWILL"]
[null,"En miles de guaranies"]
["Goodwill",{"$f":"IFERROR(IF(Indice!B6=\"\",\"2XX2\",YEAR(Indice!B6)),\"2XX2\")","v":2022},{"$f":"IFERROR(YEAR(Indice!B6-366),\"2XX1\")","v":2021}]
[]
[]
[]
["Total general",{"$f":"SUM(B8:B10)","v":0},{"$f":"SUM(C8:C10)","v":0}]

{"sheet":"Nota 13","index":17,"n_rows":22,"n_cols":5,"rows_kept":22,"cut":false,"hidden":false,"merged":[]}
[{"$f":"Indice!C1","v":"GROW S.A.E.C.A."},null,"BG"]
[]
[]
["NOTA 13 – CUENTAS POR PAGAR COMERCIALES"]
["En miles de guaranies"]
["Las cuentas por pagar comerciales se componen como sigue:"]
[]
["Corrientes","Simbología según ISO 4217","Indicación de Moneda",{"$f":"IFERROR(IF(Indice!B6=\"\",\"2XX2\",YEAR(Indice!B6)),\"2XX2\")","v":2022},{"$f":"IFERROR(YEAR(Indice!B6-366),\"2XX1\")","v":2021}]
["Proveedores - Entidades Relacionadas",null,{"$f":"IFERROR(VLOOKUP(B9,'Base de Monedas'!A:B,2,0),\"\")","v":""}]
["Otros proveedores del exterior",null,{"$f":"IFERROR(VLOOKUP(B10,'Base de Monedas'!A:B,2,0),\"\")","v":""}]
["Proveedores locales",null,{"$f":"IFERROR(VLOOKUP(B11,'Base de Monedas'!A:B,2,0),\"\")","v":""},408909,592177]
["(nuevas cuentas a incluir)",null,{"$f":"IFERROR(VLOOKUP(B12,'Base de Monedas'!A:B,2,0),\"\")","v":""}]
["Total cuentas a pagar por comerciales",null,null,{"$f":"SUM($D$9:D11)","v":408909},{"$f":"SUM($E$9:E11)","v":592177}]
[]
[]
[]
["No Corrientes","Simbología según ISO 4217","Indicación de Moneda",{"$f":"IFERROR(YEAR(Indice!B6),\"2XX2\")","v":2022},{"$f":"IFERROR(YEAR(Indice!B6-366),\"2XX1\")","v":2021}]
["Proveedores - Entidades Relacionadas",null,{"$f":"IFERROR(VLOOKUP(B18,'Base de Monedas'!A:B,2,0),\"\")","v":""}]
["Otros proveedores del exterior",null,{"$f":"IFERROR(VLOOKUP(B19,'Base de Monedas'!A:B,2,0),\"\")","v":""}]
["Proveedores locales",null,{"$f":"IFERROR(VLOOKUP(B20,'Base de Monedas'!A:B,2,0),\"\")","v":""},27560,31719]
["(nuevas cuentas a incluir)",null,{"$f":"IFERROR(VLOOKUP(B21,'Base de Monedas'!A:B,2,0),\"\")","v":""}]
["Total cuentas a pagar por comerciales",null,null,{"$f":"SUM($D$18:D20)","v":27560},{"$f":"SUM($E$18:E20)","v":31719}]

{"sheet":"Nota 14","index":18,"n_rows":55,"n_cols":12,"rows_kept":55,"cut":false,"hidden":false,"merged":[]}
[{"$f":"Indice!C1","v":"GROW S.A.E.C.A."},null,null,null,"BG",null,null,null,null,null,null,"BG"]
[]
[]
["NOTA 14 –  PRESTAMOS A CORTO Y LARGO PLAZO"]
[]
["(a) Equivalentes al tipo de cambio referencial de la fecha de presentacion"]
["(b) Obligaciones garantizadas por valor de guaraníes……….."]
[]
["Corrientes"]
[null,null,null,{"$f":"IFERROR(IF(Indice!B6=\"\",\"2XX2\",YEAR(Indice!B6)),\"2XX2\")","v":2022},null,null,null,null,null,{"$f":"IFERROR(YEAR(Indice!B6-366),\"2XX1\")","v":2021}]
["Préstamos de Entidades Locales","Vencimiento","Símbolo de Moneda","Moneda","Importe (miles de Gs)","Tipo de Garantía",null,"Vencimiento","Símbolo de Moneda","Moneda","Importe (miles de Gs)","Tipo de Garantía"]
["Financiera CEFISA ","2022-01-28","PYG","Guaraníes ",null,"Codeudoría",null,"2021-02-21","PYG","Guaraníes",1016019,"Codeudoría"]
["Banco RIO S.A.E.C.A.",null,null,null,null,"Codeudoría",null,"2020-02-27","PYG","Guaraníes",1932000,"Codeudoría"]
["FIC Financiera S.A.",null,null,{"$f":"IFERROR(VLOOKUP(C14,'Base de Monedas'!A:B,2,0),\"\")","v":""},null,null,null,null,null,null,300750]
[null,null,null,{"$f":"IFERROR(VLOOKUP(C15,'Base de Monedas'!A:B,2,0),\"\")","v":""},null,null,null,null,null,{"$f":"IFERROR(VLOOKUP(I15,'Base de Monedas'!A:B,2,0),\"\")","v":""},0]
["Sobregiros Bancarios",null,null,{"$f":"IFERROR(VLOOKUP(C16,'Base de Monedas'!A:B,2,0),\"\")","v":""},null,null,null,null,null,{"$f":"IFERROR(VLOOKUP(I16,'Base de Monedas'!A:B,2,0),\"\")","v":""}]
["Préstamos de Entidades en el Exterior",null,null,{"$f":"IFERROR(VLOOKUP(C17,'Base de Monedas'!A:B,2,0),\"\")","v":""},null,null,null,null,null,{"$f":"IFERROR(VLOOKUP(I17,'Base de Monedas'!A:B,2,0),\"\")","v":""}]
["Nombre de la entidad financiera",null,null,{"$f":"IFERROR(VLOOKUP(C18,'Base de Monedas'!A:B,2,0),\"\")","v":""},null,null,null,null,null,{"$f":"IFERROR(VLOOKUP(I18,'Base de Monedas'!A:B,2,0),\"\")","v":""}]
["Nombre de la entidad financiera",null,null,{"$f":"IFERROR(VLOOKUP(C19,'Base de Monedas'!A:B,2,0),\"\")","v":""},null,null,null,null,null,{"$f":"IFERROR(VLOOKUP(I19,'Base de Monedas'!A:B,2,0),\"\")","v":""}]
["(incluir otras entidades)",null,null,{"$f":"IFERROR(VLOOKUP(C20,'Base de Monedas'!A:B,2,0),\"\")","v":""},null,null,null,null,null,{"$f":"IFERROR(VLOOKUP(I20,'Base de Monedas'!A:B,2,0),\"\")","v":""}]
["Deudas bursátiles",null,null,{"$f":"IFERROR(VLOOKUP(C21,'Base de Monedas'!A:B,2,0),\"\")","v":""},null,null,null,null,null,{"$f":"IFERROR(VLOOKUP(I21,'Base de Monedas'!A:B,2,0),\"\")","v":""}]
["(Incluir programas de forma individual)",null,null,{"$f":"IFERROR(VLOOKUP(C22,'Base de Monedas'!A:B,2,0),\"\")","v":""},null,null,null,null,null,{"$f":"IFERROR(VLOOKUP(I22,'Base de Monedas'!A:B,2,0),\"\")","v":""}]
["Intereses préstamos entidades financieras a pagar",null,null,{"$f":"IFERROR(VLOOKUP(C23,'Base de Monedas'!A:B,2,0),\"\")","v":""},null,null,null,null,null,{"$f":"IFERROR(VLOOKUP(I23,'Base de Monedas'!A:B,2,0),\"\")","v":""}]
["Intereses a pagar CEFISA",null,"PYG","Guaraní",null,null,null,null,null,{"$f":"IFERROR(VLOOKUP(I24,'Base de Monedas'!A:B,2,0),\"\")","v":""},20039]
["Intereses a pagar BANCO RIO",null,"PYG","Guaraní",null,null,null,null,null,null,135189]
["Intereses a pagar FIC FINANCIERA",null,"PYG","Guaraní",null,null,null,null,null,null,108274]
["(-) Intereses a Devengar CEFISA",null,"PYG","Guaraní",null,null,null,null,null,null,-79940]
["(-) Intereses a Devengar BANCO RIO",null,"PYG","Guaraní",null,null,null,null,null,null,-64089]
["(-) Intereses a Devengar FIC FINANCIERA",null,"PYG","Guaraní",null,null,null,null,"PYG",{"$f":"IFERROR(VLOOKUP(I29,'[1]Base de Monedas'!G:H,2,0),\"\")","v":""},-17139]
["(-) Intereses a Devengar"]
["Total",null,null,{"$f":"IFERROR(VLOOKUP(C31,'Base de Monedas'!A:B,2,0),\"\")","v":""},{"$f":"SUM($E$12:E30)","v":0},null,null,null,null,null,{"$f":"SUM($K$12:K30)","v":3351103}]
[]
[]
["No Corrientes"]
[null,"20X2",null,{"$f":"IFERROR(YEAR(Indice!B6),\"2XX2\")","v":2022},null,null,null,null,null,{"$f":"IFERROR(YEAR(Indice!B6-366),\"2XX1\")","v":2021}]
["Préstamos de Entidades Locales","Vencimiento","Símbolo de Moneda","Moneda","Importe (miles de Gs)","Tipo de garantía",null,"Vencimiento","Símbolo de Moneda","Moneda","Importe (miles de Gs)","Tipo de Garantía"]
["Banco Itapua S.A.",null,null,null,null,null,null,"2021-04-17"]
["Banco Itapua S.A.",null,null,{"$f":"IFERROR(VLOOKUP(C38,'Base de Monedas'!A:B,2,0),\"\")","v":""},null,null,null,null,null,{"$f":"IFERROR(VLOOKUP(I38,'Base de Monedas'!A:B,2,0),\"\")","v":""}]
["(incluir otras entidades)",null,null,{"$f":"IFERROR(VLOOKUP(C39,'Base de Monedas'!A:B,2,0),\"\")","v":""},null,null,null,null,null,{"$f":"IFERROR(VLOOKUP(I39,'Base de Monedas'!A:B,2,0),\"\")","v":""}]
["Deudas bursátiles",null,null,{"$f":"IFERROR(VLOOKUP(C40,'Base de Monedas'!A:B,2,0),\"\")","v":""},null,null,null,null,null,{"$f":"IFERROR(VLOOKUP(I40,'Base de Monedas'!A:B,2,0),\"\")","v":""}]
["(Incluir programas de forma individual)",null,null,{"$f":"IFERROR(VLOOKUP(C41,'Base de Monedas'!A:B,2,0),\"\")","v":""},null,null,null,null,null,{"$f":"IFERROR(VLOOKUP(I41,'Base de Monedas'!A:B,2,0),\"\")","v":""}]
["Préstamos de Entidades en el Exterior",null,null,{"$f":"IFERROR(VLOOKUP(C42,'Base de Monedas'!A:B,2,0),\"\")","v":""},null,null,null,null,null,{"$f":"IFERROR(VLOOKUP(I42,'Base de Monedas'!A:B,2,0),\"\")","v":""}]
["Nombre de la entidad financiera",null,null,{"$f":"IFERROR(VLOOKUP(C43,'Base de Monedas'!A:B,2,0),\"\")","v":""},null,null,null,null,null,{"$f":"IFERROR(VLOOKUP(I43,'Base de Monedas'!A:B,2,0),\"\")","v":""}]
["Nombre de la entidad financiera",null,null,{"$f":"IFERROR(VLOOKUP(C44,'Base de Monedas'!A:B,2,0),\"\")","v":""},null,null,null,null,null,{"$f":"IFERROR(VLOOKUP(I44,'Base de Monedas'!A:B,2,0),\"\")","v":""}]
["(incluir otras entidades)",null,null,{"$f":"IFERROR(VLOOKUP(C45,'Base de Monedas'!A:B,2,0),\"\")","v":""},null,null,null,null,null,{"$f":"IFERROR(VLOOKUP(I45,'Base de Monedas'!A:B,2,0),\"\")","v":""}]
["Deudas bursátiles",null,null,{"$f":"IFERROR(VLOOKUP(C46,'Base de Monedas'!A:B,2,0),\"\")","v":""},null,null,null,null,null,{"$f":"IFERROR(VLOOKUP(I46,'Base de Monedas'!A:B,2,0),\"\")","v":""}]
["(Incluir programas de forma individual)",null,null,{"$f":"IFERROR(VLOOKUP(C47,'Base de Monedas'!A:B,2,0),\"\")","v":""},null,null,null,null,null,{"$f":"IFERROR(VLOOKUP(I47,'Base de Monedas'!A:B,2,0),\"\")","v":""}]
["Intereses préstamos entidades financieras a pagar",null,null,{"$f":"IFERROR(VLOOKUP(C48,'Base de Monedas'!A:B,2,0),\"\")","v":""},null,null,null,null,null,{"$f":"IFERROR(VLOOKUP(I48,'Base de Monedas'!A:B,2,0),\"\")","v":""}]
["Intereses a pagar",null,null,{"$f":"IFERROR(VLOOKUP(C49,'Base de Monedas'!A:B,2,0),\"\")","v":""},null,null,null,null,null,{"$f":"IFERROR(VLOOKUP(I49,'Base de Monedas'!A:B,2,0),\"\")","v":""},0]
["(-) Intereses a Devengar"]
["Intereses deudas bursátiles a pagar",null,null,{"$f":"IFERROR(VLOOKUP(C51,'Base de Monedas'!A:B,2,0),\"\")","v":""},null,null,null,null,null,{"$f":"IFERROR(VLOOKUP(I51,'Base de Monedas'!A:B,2,0),\"\")","v":""}]
["Intereses a pagar",null,null,null,null,null,null,null,null,{"$f":"IFERROR(VLOOKUP(I52,'[1]Base de Monedas'!G:H,2,0),\"\")","v":""},0,"Codeudoria"]
["(-) Intereses a Devengar",null,null,{"$f":"IFERROR(VLOOKUP(C53,'Base de Monedas'!A:B,2,0),\"\")","v":""}]
["Total",null,null,{"$f":"IFERROR(VLOOKUP(C54,'Base de Monedas'!A:B,2,0),\"\")","v":""},{"$f":"SUM($E$37:E53)","v":0},null,null,null,null,{"$f":"IFERROR(VLOOKUP(I54,'Base de Monedas'!A:B,2,0),\"\")","v":""},{"$f":"SUM($K$37:K53)","v":0}]
[null,null,null,null,null,null,null,null,null,{"$f":"IFERROR(VLOOKUP(I55,'Base de Monedas'!H:I,2,0),\"\")","v":""}]

{"sheet":"Nota 15","index":19,"n_rows":15,"n_cols":4,"rows_kept":15,"cut":false,"hidden":true,"merged":[[6,1,6,2]]}
[{"$f":"Indice!C1","v":"GROW S.A.E.C.A."},null,null,"BG"]
[]
[]
[]
["NOTA 15 – PORCION CORRIENTE DE LA DEUDA A LARGO PLAZO"]
[]
[null,"En miles de guaranies"]
["Porción corriente de la deuda a largo plazo",{"$f":"IFERROR(IF(Indice!B6=\"\",\"2XX2\",YEAR(Indice!B6)),\"2XX2\")","v":2022},{"$f":"IFERROR(YEAR(Indice!B6-366),\"2XX1\")","v":2021}]
["Cuentas por pagar comerciales",null,0]
["Préstamos bancarios",0,0]
["Bonos bursátiles",null,0]
["Intereses bancarios a pagar",0,0]
["Intereses bursatiles a pagar"]
["(nuevas cuentas a incluir)"]
["Total general",{"$f":"SUM($B$9:B14)","v":0},{"$f":"SUM($C$9:C14)","v":0}]

{"sheet":"Nota 16","index":20,"n_rows":12,"n_cols":6,"rows_kept":12,"cut":false,"hidden":false,"merged":[[5,1,5,2]]}
[{"$f":"Indice!C1","v":"GROW S.A.E.C.A."},null,null,null,null,"BG"]
[]
[]
["NOTA 16 – REMUNERACIONES Y CARGAS SOCIALES A PAGAR"]
[]
[null,"En miles de guaranies"]
["Remuneraciones y cargas sociales a pagar",{"$f":"IFERROR(IF(Indice!B6=\"\",\"2XX2\",YEAR(Indice!B6)),\"2XX2\")","v":2022},{"$f":"IFERROR(YEAR(Indice!B6-366),\"2XX1\")","v":2021}]
["Sueldo y otras remuneraciones a pagar",24152,0]
["Aportes y retenciones a pagar",8454,8173]
["Remuneraciones al personal superior a pagar"]
["(Indicar otras cuentas)"]
["Total",{"$f":"SUM($B$8:B11)","v":32606},{"$f":"SUM($C$8:C11)","v":8173}]

{"sheet":"Nota 17","index":21,"n_rows":13,"n_cols":7,"rows_kept":13,"cut":false,"hidden":false,"merged":[[6,1,6,2]]}
[{"$f":"Indice!C1","v":"GROW S.A.E.C.A."},null,null,null,null,null,"BG"]
[]
[]
[]
["NOTA 17 –  IMPUESTOS A PAGAR"]
[]
[null,"En miles de guaranies"]
["Impuestos a pagar",{"$f":"IFERROR(IF(Indice!B6=\"\",\"2XX2\",YEAR(Indice!B6)),\"2XX2\")","v":2022},{"$f":"IFERROR(YEAR(Indice!B6-366),\"2XX1\")","v":2021}]
["Impuesto a la renta a pagar",150832,1160]
["Impuesto al Valor Agregado a pagar",19825,34521]
["Retención IDU a pagar"]
["IVA a facturar",138783,4679]
["Total",{"$f":"SUM($B$9:B12)","v":309440},{"$f":"SUM($C$9:C12)","v":40360}]

{"sheet":"Nota 18","index":22,"n_rows":13,"n_cols":4,"rows_kept":13,"cut":false,"hidden":true,"merged":[[3,0,3,3],[6,0,7,0],[5,1,5,2]]}
[{"$f":"Indice!C1","v":"GROW S.A.E.C.A."},null,null,"BG"]
[]
[]
["NOTA 18 -  PROVISIONES"]
[]
[null,"En miles de guaranies"]
["Provisiones",{"$f":"IFERROR(IF(Indice!B6=\"\",\"2XX2\",YEAR(Indice!B6)),\"2XX2\")","v":2022},{"$f":"IFERROR(YEAR(Indice!B6-366),\"2XX1\")","v":2021}]
[]
["Alquileres a Pagar"]
["Servicios Basicos a Pagar"]
["Honorarios Profesionales a Pagar"]
["(Indicar cuentas)"]
["Total",{"$f":"SUM($B$9:B12)","v":0},{"$f":"SUM($C$9:C12)","v":0}]

{"sheet":"Nota 19","index":23,"n_rows":14,"n_cols":7,"rows_kept":14,"cut":false,"hidden":false,"merged":[[3,0,3,1]]}
[{"$f":"Indice!C1","v":"GROW S.A.E.C.A."},null,null,"BG"]
[]
["NOTA 19 – OTROS PASIVOS CORRIENTES y NO CORRIENTES"]
["En miles de guaranies"]
[]
["Corrientes",{"$f":"IFERROR(IF(Indice!B6=\"\",\"2XX2\",YEAR(Indice!B6)),\"2XX2\")","v":2022},{"$f":"IFERROR(YEAR(Indice!B6-366),\"2XX1\")","v":2021},null,"No Corrientes",{"$f":"IFERROR(IF(Indice!B6=\"\",\"2XX2\",YEAR(Indice!B6)),\"2XX2\")","v":2022},{"$f":"IFERROR(YEAR(Indice!B6-365),\"2XX1\")","v":2021}]
["Retencion de IVA a pagar",null,null,null,"Retencion de IVA a pagar"]
["Retencion Impuesto a la renta a Pagar",null,null,null,"Retencion Impuesto a la renta a Pagar"]
["Impuestos diferidos",null,null,null,"Impuestos diferidos"]
["Otros ingresos diferidos (detallar cuenta)",null,null,null,"Otros ingresos diferidos",9343203,315321]
["Otros Pasivos con Entidades relacionadas ",null,null,null,"Otros Pasivos con Entidades relacionadas "]
["Previsiones para contingencias/Indemnizaciones y despidos",null,null,null,"Previsiones para contingencias/Indemnizaciones y despidos"]
["(nuevas cuentas a incluir)",null,null,null,"(nuevas cuentas a incluir)"]
["Total ",{"$f":"SUM(B8:B13)","v":0},{"$f":"SUM(C8:C13)","v":0},null,"Total ",{"$f":"SUM(F8:F13)","v":9343203},{"$f":"SUM(G8:G13)","v":315321}]

{"sheet":"Nota 20","index":24,"n_rows":11,"n_cols":4,"rows_kept":11,"cut":false,"hidden":false,"merged":[[3,0,3,3]]}
[{"$f":"Indice!C1","v":"GROW S.A.E.C.A."},null,null,"BG"]
[]
[]
["NOTA 20 – CAPITAL INTEGRADO"]
[]
["Fecha",{"$f":"IFERROR(IF(Indice!B6=\"\",\"2XX2\",YEAR(Indice!B6)),\"2XX2\")","v":2022},{"$f":"IFERROR(YEAR(Indice!B6-366),\"2XX1\")","v":2021}]
["Monto Capital Social",20000000,10000000]
["Monto Capital Integrado",13936100,10000000]
["Cantidad de Acciones",{"$f":"+B8/B10","v":139361},{"$f":"+C8/C10","v":100000}]
["Valor Nominal de Acciones",100,100]
["Total",{"$f":"+B8","v":13936100},{"$f":"+C8","v":10000000}]

{"sheet":" Nota 21","index":25,"n_rows":23,"n_cols":6,"rows_kept":23,"cut":false,"hidden":false,"merged":[[3,0,3,5],[5,1,5,2]]}
[{"$f":"Indice!C1","v":"GROW S.A.E.C.A."},null,null,null,null,"BG"]
[]
[]
["NOTA 21 – RESERVAS"]
[]
[null,"En miles de guaranies"]
[null,{"$f":"IFERROR(IF(Indice!B6=\"\",\"2XX2\",YEAR(Indice!B6)),\"2XX2\")","v":2022},{"$f":"IFERROR(YEAR(Indice!B6-366),\"2XX1\")","v":2021}]
["a  Reserva de revalúo",35270,35270]
[]
[]
[]
["b Reserva legal",483409,417517]
[null,null,0]
[]
[]
["c Reservas Facultativa"]
[]
[]
[]
["d Reservas facultativas",{"$f":"+SUM($B$21:B26)","v":2460172},{"$f":"+SUM($C$21:C26)","v":3961686}]
["d.1. (Aporte para futura integración )",{"$f":"67186+325900","v":393086},2550766]
["d.2. (Prima por venta de acciones)",1796186,1140020]
["d.3. (Reserva Facultativa)",270900,270900]

{"sheet":"Nota 22","index":26,"n_rows":8,"n_cols":6,"rows_kept":8,"cut":false,"hidden":true,"merged":[[5,1,5,2]]}
[{"$f":"Indice!C1","v":"GROW S.A.E.C.A."},null,null,null,null,"BG"]
[]
[]
["NOTA 21 –  DIFERENCIA TRANSITORIA POR CONVERSION"]
[]
[null,"En miles de guaranies"]
[null,{"$f":"IFERROR(IF(Indice!B6=\"\",\"2XX2\",YEAR(Indice!B6)),\"2XX2\")","v":2022},{"$f":"+IFERROR(YEAR(Indice!B6-365),\"2XX1\")","v":2021}]
["Diferencia transitoria por conversión"]

{"sheet":"Nota 23","index":27,"n_rows":10,"n_cols":6,"rows_kept":10,"cut":false,"hidden":false,"merged":[[5,1,5,2]]}
[{"$f":"Indice!C1","v":"GROW S.A.E.C.A."},null,null,null,null,"BG"]
[]
[]
["NOTA 23 –  RESULTADOS ACUMULADOS"]
[]
[null,"En miles de guaranies"]
[null,{"$f":"IFERROR(IF(Indice!B6=\"\",\"2XX2\",YEAR(Indice!B6)),\"2XX2\")","v":2022},{"$f":"+IFERROR(YEAR(Indice!B6-366),\"2XX1\")","v":2021}]
["Resultado de ejercicios anteriores",0,1056227]
["Resultado del ejercicio actual",1251948,1707617]
["Totales",{"$f":"SUM($B$8:B9)","v":1251948},{"$f":"SUM($C$8:C9)","v":2763844}]

{"sheet":"Nota 24","index":28,"n_rows":8,"n_cols":6,"rows_kept":8,"cut":false,"hidden":true,"merged":[[5,1,5,2]]}
[{"$f":"Indice!C1","v":"GROW S.A.E.C.A."},null,null,null,null,"BG"]
[]
[]
["NOTA 24 –  INTERES MINORITARIO"]
[]
[null,"En miles de guaranies"]
[null,{"$f":"IFERROR(IF(Indice!B6=\"\",\"2XX2\",YEAR(Indice!B6)),\"2XX2\")","v":2022},{"$f":"+IFERROR(YEAR(Indice!B6-365),\"2XX1\")","v":2021}]
["Interes Minoritario"]

{"sheet":"Nota 25","index":29,"n_rows":30,"n_cols":5,"rows_kept":30,"cut":false,"hidden":false,"merged":[[7,1,7,2]]}
[{"$f":"Indice!C1","v":"GROW S.A.E.C.A."},null,null,null,"ER"]
[]
[]
[]
["NOTA 25 –  VENTAS"]
[]
[]
[null,"En miles de guaranies"]
[null,{"$f":"IFERROR(IF(Indice!B6=\"\",\"2XX2\",YEAR(Indice!B6)),\"2XX2\")","v":2022},{"$f":"+IFERROR(YEAR(Indice!B6-366),\"2XX1\")","v":2021}]
["Ventas"]
["Casa de Credito - Productos financieros"]
["Local"]
["Productos por operaciones de crédito",2302601,2133847]
["Ingresos por gastos Administrativos",{"$f":"375021+25601","v":400622},425861]
["Ingresos por Tarjetas de Crédito",410049.71399999998,240305]
["Ingreso por venta de Bienes Adjudicados",177053.20499999999,96600]
["Desafectación por previsiones",1564955.2660000001,665659]
["Comisiones cobradas",96039]
["Intereses moratorios y punitorios",390250]
["Otros recargos"]
["Otros ",{"$f":"5611+1085","v":6696},597168]
["Ventas linea Inmobiliaria"]
["Local"]
["Contado"]
["Crédito",362640]
["Exterior"]
["Contado"]
["Crédito"]
["(nuevas lineas de negocio a incluir)"]
["Total",{"$f":"SUM($B$11:B28)","v":5710906.1850000005},{"$f":"SUM($C$11:C28)","v":4159440}]

{"sheet":"Nota 26","index":30,"n_rows":21,"n_cols":5,"rows_kept":21,"cut":false,"hidden":false,"merged":[[4,0,4,5],[6,1,6,2],[7,1,7,2]]}
[{"$f":"Indice!C1","v":"GROW S.A.E.C.A."},null,null,null,"ER"]
[]
[]
[]
["NOTA 26 - COSTO DE VENTAS"]
[]
[]
[null,"Miles de guaraníes"]
["Costo de ventas",{"$f":"IFERROR(IF(Indice!B6=\"\",\"2XX2\",YEAR(Indice!B6)),\"2XX2\")","v":2022},{"$f":"+IFERROR(YEAR(Indice!B6-366),\"2XX1\")","v":2021}]
["Linea de negocio 1"]
["Existencia inicial del inventario",214363,83763]
["+ Compra de bienes y servicios"]
["+ Costo de producción"]
["- Existencia final de inventario"]
["Linea de negocio 2"]
["Existencia inicial del inventario"]
["+ Compra de bienes y servicios"]
["+ Costo de producción"]
["- Existencia final de inventario"]
["(nuevas lineas de negocio a incluir)"]
["Total costo de ventas",{"$f":"SUM($B$10:B20)","v":214363},{"$f":"SUM($C$10:C20)","v":83763}]

{"sheet":"Nota 27","index":31,"n_rows":42,"n_cols":7,"rows_kept":42,"cut":false,"hidden":false,"merged":[[5,0,5,7],[10,0,11,0]]}
[{"$f":"Indice!C1","v":"GROW S.A.E.C.A."},null,null,null,null,null,"ER"]
[]
[]
[]
["NOTA 27 - GASTOS"]
["(Esta nota deberá ser incluida cuando en el estado de resultados se haga mención a una cuenta de carácter general o cuyo nombre no permita una adecuada identificación de la naturaleza del gasto y su importe sea significativo) "]
[]
["El rubro está compuesto de la siguiente forma: "]
[]
["Miles de guaraníes"]
[null,null,{"$f":"IFERROR(IF(Indice!B6=\"\",\"2XX2\",YEAR(Indice!B6)),\"2XX2\")","v":2022},null,null,{"$f":"+IFERROR(YEAR(Indice!B6-366),\"2XX1\")","v":2021}]
[null,"Gastos de Ventas","Gastos Administrativos","Total","Gastos de Ventas","Gastos Administrativos","Total"]
["Movilidad y viáticos",null,45877,{"$f":"+C13+B13","v":45877},null,null,{"$f":"+F13+E13","v":0}]
["Gastos de alquiler",null,202792,{"$f":"+C14+B14","v":202792},null,207245,{"$f":"+F14+E14","v":207245}]
["Computación y redes",null,29600,{"$f":"+C15+B15","v":29600},null,null,{"$f":"+F15+E15","v":0}]
["Gastos por servicios",89371,null,89371,126596,39630,166226]
["Honorarios profesionales y asesoramiento",null,147632,147632,null,90014,90014]
["Otros gastos de Administración ",null,285129,285129,null,314506,314506]
["Impuestos y tasas",null,63191,63191,null,23466,23466]
["Gastos de reparación y mantenimiento",null,323454,323454,null,289341,289341]
["Gastos del personal y capacitación",null,8100,8100,null,null,0]
["Seguros pagados",null,11352,11352,null,9936,9936]
["Comisiones Pagadas",113467,null,113467,null,null,0]
["Remuneraciones de administradores, directores, síndicos y consejo de vigilancia",null,278909,278909,null,256818,256818]
["Sueldos y Jornales",null,318552,318552,null,276401,276401]
["Contribuciones Sociales",null,48576,48576,null,42081,42081]
["Regalías y Honorarios por servicios técnicos",null,null,0,null,null,0]
["Gastos de Publicidad y Propaganda",68204,null,68204,37977,145327,183304]
["Intereses, multas y recargos impositivos",null,null,0,null,null,0]
["Intereses a bancos e instituciones financieras",null,164506,164506,null,null,0]
["Depreciación bienes de uso",null,64482,64482,null,40208,40208]
["Amortización activos intangibles",null,null,0,null,null,0]
["Previsiones",null,1784112,1784112,null,693399,693399]
["Servicios Básicos ",null,46457,46457,null,39658,39658]
["Total",{"$f":"+SUM($B$13:B34)","v":271042},{"$f":"+SUM($C$13:C34)","v":3822721},{"$f":"+SUM($D$13:D34)","v":4093763},{"$f":"+SUM($E$13:E34)","v":164573},{"$f":"+SUM($F$13:F34)","v":2468030},{"$f":"+SUM($G$13:G34)","v":2632603}]
[]
[null,null,null,{"$f":"+'Nota 26'!B21","v":214363}]
[null,null,null,{"$f":"+'Nota 32'!B8","v":150832}]
[null,null,null,{"$f":"+D35+D37+D38","v":4458958}]
[]
[]
[null,null,null,null,null,{"$f":"+F41-E35-F35","v":-2632603}]

{"sheet":"Nota 28","index":32,"n_rows":16,"n_cols":7,"rows_kept":16,"cut":false,"hidden":true,"merged":[[3,0,3,4],[5,1,5,2]]}
[{"$f":"Indice!C1","v":"GROW S.A.E.C.A."},null,null,null,"ER"]
[]
[]
["Nota 28 - Otros Ingresos y gastos operativos"]
[]
["Miles de guaraníes"]
[]
["Otros ingresos",{"$f":"IFERROR(IF(Indice!B6=\"\",\"2XX2\",YEAR(Indice!B6)),\"2XX2\")","v":2022},{"$f":"+IFERROR(YEAR(Indice!B6-365),\"2XX1\")","v":2021},null,"Otros gastos",{"$f":"IFERROR(IF(Indice!B6=\"\",\"2XX2\",YEAR(Indice!B6)),\"2XX2\")","v":2022},{"$f":"+IFERROR(YEAR(Indice!B6-365),\"2XX1\")","v":2021}]
["(Detallar cuenta)",null,null,null,"(Detallar cuenta)"]
[]
[]
[]
[]
[]
[]
["Total",{"$f":"SUM($B$9:B15)","v":0},{"$f":"SUM($C$9:C15)","v":0},null,"Total",{"$f":"SUM($F$9:F15)","v":0},{"$f":"SUM($G$9:G15)","v":0}]

{"sheet":"Nota 29","index":33,"n_rows":14,"n_cols":7,"rows_kept":14,"cut":false,"hidden":true,"merged":[]}
[{"$f":"Indice!C1","v":"GROW S.A.E.C.A."},null,null,null,"ER"]
[]
[]
[]
["NOTA 29 - INGRESOS Y GASTOS FINANCIEROS NETOS"]
["Miles de guaraníes"]
[]
["Ingresos Financieros netos",{"$f":"IFERROR(IF(Indice!B6=\"\",\"2XX2\",YEAR(Indice!B6)),\"2XX2\")","v":2022},{"$f":"+IFERROR(YEAR(Indice!B6-365),\"2XX1\")","v":2021},null,"Gastos Financieros netos",{"$f":"IFERROR(IF(Indice!B6=\"\",\"2XX2\",YEAR(Indice!B6)),\"2XX2\")","v":2022},{"$f":"+IFERROR(YEAR(Indice!B6-365),\"2XX1\")","v":2021}]
["(Detallar cuentas)",null,null,null,"(Detallar cuentas)"]
[]
[]
[]
[]
["Total ingresos financieros",{"$f":"SUM($B9:B13)","v":0},{"$f":"SUM($C9:C13)","v":0},null,"Total gastos financieros",{"$f":"SUM($F9:F13)","v":0},{"$f":"SUM($G9:G13)","v":0}]

{"sheet":"Nota 30","index":34,"n_rows":16,"n_cols":5,"rows_kept":16,"cut":false,"hidden":true,"merged":[[5,1,5,2]]}
[{"$f":"Indice!C1","v":"GROW S.A.E.C.A."},null,null,null,"ER"]
[]
[]
["Nota 34 - Resultado de inversiones en asociadas"]
["Miles de guaraníes"]
[]
[]
["Resultado de inversiones en asociadas",{"$f":"IFERROR(IF(Indice!B6=\"\",\"2XX2\",YEAR(Indice!B6)),\"2XX2\")","v":2022},{"$f":"+IFERROR(YEAR(Indice!B6-365),\"2XX1\")","v":2021}]
["(Detallar cuenta)"]
[]
[]
[]
[]
[]
[]
["Total",{"$f":"SUM($B9:B15)","v":0},{"$f":"SUM($C9:C15)","v":0}]

{"sheet":"Nota 31","index":35,"n_rows":16,"n_cols":5,"rows_kept":16,"cut":false,"hidden":true,"merged":[[4,0,4,1],[5,1,5,2]]}
[{"$f":"Indice!C1","v":"GROW S.A.E.C.A."},null,null,null,"ER"]
[]
[]
["Nota 31 - Resultado participación minoritaria"]
["Miles de guaraníes"]
[]
[]
["Resultado participación minoritaria",{"$f":"IFERROR(IF(Indice!B6=\"\",\"2XX2\",YEAR(Indice!B6)),\"2XX2\")","v":2022},{"$f":"+IFERROR(YEAR(Indice!B6-365),\"2XX1\")","v":2021}]
["(Detallar cuenta)"]
[]
[]
[]
[]
[]
[]
["Total",{"$f":"SUM($B9:B15)","v":0},{"$f":"SUM($C9:C15)","v":0}]

{"sheet":"Nota 32","index":36,"n_rows":14,"n_cols":5,"rows_kept":14,"cut":false,"hidden":false,"merged":[[5,1,5,2]]}
[{"$f":"Indice!C1","v":"GROW S.A.E.C.A."},null,null,null,"ER"]
[]
[]
["Nota 32 - IMPUESTO A LA RENTA"]
["En miles de guaraníes"]
[]
[null,{"$f":"IFERROR(IF(Indice!B6=\"\",\"2XX2\",YEAR(Indice!B6)),\"2XX2\")","v":2022},{"$f":"+IFERROR(YEAR(Indice!B6-366),\"2XX1\")","v":2021}]
["Impuesto a la renta",150832,150160]
[]
[]
[]
[]
[]
["Total",{"$f":"SUM($B8:B13)","v":150832},{"$f":"SUM($C8:C13)","v":150160}]

{"sheet":"Nota 33","index":37,"n_rows":15,"n_cols":5,"rows_kept":15,"cut":false,"hidden":true,"merged":[[4,0,4,1]]}
[{"$f":"Indice!C1","v":"GROW S.A.E.C.A."},null,null,null,"ER"]
[]
[]
["Nota 33 - Resultado extraordinario neto de impuesto a la renta"]
["En miles de guaraníes"]
[]
[null,{"$f":"IFERROR(IF(Indice!B6=\"\",\"2XX2\",YEAR(Indice!B6)),\"2XX2\")","v":2022},{"$f":"+IFERROR(YEAR(Indice!B6-365),\"2XX1\")","v":2021}]
["Conceptos"]
["(Detallar)"]
[]
[]
[]
[]
[]
["Total",{"$f":"SUM($B8:B14)","v":0},{"$f":"SUM($C8:C14)","v":0}]

{"sheet":"Nota 34","index":38,"n_rows":12,"n_cols":5,"rows_kept":12,"cut":false,"hidden":true,"merged":[[4,0,4,1]]}
[{"$f":"Indice!C1","v":"GROW S.A.E.C.A."},null,null,null,"ER"]
[]
[]
["Nota 34 - Resultado sobre actividades discontinuadas neto de impuesto a la renta"]
["En miles de guaraníes"]
[]
["Resultado sobre actividades discontinuadas neto de impuesto a la renta",{"$f":"IFERROR(IF(Indice!B6=\"\",\"2XX2\",YEAR(Indice!B6)),\"2XX2\")","v":2022},{"$f":"+IFERROR(YEAR(Indice!B6-365),\"2XX1\")","v":2021}]
[]
["(nueva cuenta a incluir)"]
["Subtotal"]
["- Impuesto a la renta"]
["Total",{"$f":"SUM($B8:B11)","v":0},{"$f":"SUM($C8:C11)","v":0}]

{"sheet":"Nota 35","index":39,"n_rows":10,"n_cols":5,"rows_kept":10,"cut":false,"hidden":false,"merged":[]}
[{"$f":"Indice!C1","v":"GROW S.A.E.C.A."},null,null,null,"ER"]
[]
[]
["NOTA 35- UTILIDAD (PÉRDIDA) NETA DEL AÑO Y POR ACCION ORDINARIA"]
["La Sociedad calcula la utilidad (pérdida) neta por acción sobre la base de la utilidad (pérdida) del año y … acciones ordinarias (aclarar las características de las acciones) de valor nominal G/ …cada una con derecho a … voto por acción (aclarar el derecho de voto que tiene cada tipo de acción)."]
[]
[null,{"$f":"IFERROR(IF(Indice!B6=\"\",\"2XX2\",YEAR(Indice!B6)),\"2XX2\")","v":2022},{"$f":"+IFERROR(YEAR(Indice!B6-366),\"2XX1\")","v":2021}]
["Cantidad de Acciones Ordinarias en Circulación",{"$f":"+'Nota 20'!B9","v":139361},{"$f":"+'Nota 20'!C9","v":100000}]
["Utilidad Neta",{"$f":"ER!C31","v":1251948.1850000005},{"$f":"ER!D31","v":1292914}]
["Utilidad Neta por Acción Ordinaria",{"$f":"IFERROR(B9/B8,0)","v":8.9834902519356241},{"$f":"IFERROR(C9/C8,0)","v":12.92914}]

{"sheet":"Nota 36","index":40,"n_rows":16,"n_cols":5,"rows_kept":16,"cut":false,"hidden":true,"merged":[[5,0,5,8],[3,0,3,4]]}
[{"$f":"Indice!C1","v":"GROW S.A.E.C.A."},null,null,null,"Indice"]
[]
[]
["NOTA 36 - ACTIVOS GRAVADOS"]
[]
["Los siguientes bienes de propiedad de la Sociedad han sido hipotecados y prendados en garantía de obligaciones financieras."]
[]
[{"$f":"IFERROR(\"Al \"&DAY(Indice!B6)&\" de \"&VLOOKUP(MONTH(Indice!B6),Indice!S:T,2,0)&\" de \"&YEAR(Indice!B6-365),\"Al dia... de mes… de año 2XX1…\")","v":"Al 30 de Septiembre de 2021"}]
["Tipo de Activo","Datos  del activo gravado","Tipo de garantía","Importe (indicar   moneda)","A favor de"]
[]
[]
[]
[]
[]
[{"$f":"IFERROR(\"Al \"&DAY(Indice!B6)&\" de \"&VLOOKUP(MONTH(Indice!B6),Indice!S:T,2,0)&\" de \"&YEAR(Indice!B6-1),\"Al dia... de mes… de año 2XX2…\")","v":"Al 30 de Septiembre de 2022"}]
["Tipo de Activo","Datos  del activo gravado","Tipo de garantía","Importe (indicar   moneda)","A favor de"]

{"sheet":"Nota 37","index":41,"n_rows":15,"n_cols":5,"rows_kept":15,"cut":false,"hidden":true,"merged":[[14,0,14,7],[4,0,4,8],[5,0,5,8],[10,0,11,7]]}
[{"$f":"Indice!C1","v":"GROW S.A.E.C.A."},null,null,null,"Indice"]
[]
[]
["NOTA 37 - CONTINGENCIAS Y COMPROMISOS "]
["(Esta nota debería incluir un breve detalle de contratos con terceros, vigente a la fecha de cierre del ejercicio, cuyo incumplimiento o cláusula específica podrían generar obligaciones contingentes para el cliente). "]
[{"$f":"IFERROR(\"Los principales contratos suscriptos por la Sociedad, vigentes al  \"&DAY(Indice!B6)&\" de \"&VLOOKUP(MONTH(Indice!B6),Indice!S:T,2,0)&\" de \"&YEAR(Indice!B6-1)&\" son:\",\"Los principales contratos suscriptos por la Sociedad, vigentes al … de …  20X2 son:\")","v":"Los principales contratos suscriptos por la Sociedad, vigentes al  30 de Septiembre de 2022 son:"}]
["a)"]
["b)"]
[]
[]
[{"$f":"IFERROR(\"Al  \"&DAY(Indice!B6)&\" de \"&VLOOKUP(MONTH(Indice!B6),Indice!S:T,2,0)&\" de \"&YEAR(Indice!B6-1)&\" no existen situaciones contingentes, ni reclamos que pudieran resultar en la generación de obligaciones para la Sociedad adicionales a las que se presentan en estos estados financieros.\",\"Al … de …………... 20X2 no existen situaciones contingentes, ni reclamos que pudieran resultar en la generación de obligaciones para la Sociedad adicionales a las que se presentan en estos estados financieros.\")","v":"Al  30 de Septiembre de 2022 no existen situaciones contingentes, ni reclamos que pudieran resultar en la generación de obligaciones para la Sociedad adicionales a las que se presentan en estos estados financieros."}]
[]
[]
[]
["Obs.: Esta información debe estar ajustada  a lo requerido por la Norma de Información Financiera N° 5 Contingencias y sucesos que ocurren después de la fecha del balance. "]

{"sheet":"Nota 38","index":42,"n_rows":25,"n_cols":4,"rows_kept":25,"cut":false,"hidden":true,"merged":[[3,0,3,6],[5,0,5,6],[6,0,6,6],[8,0,8,6]]}
[{"$f":"Indice!C1","v":"GROW S.A.E.C.A."},null,null,"Índice"]
[]
[]
["NOTA 38 - IMPUESTO DIFERIDO"]
["En miles de guaraníes"]
["Al … de …........... 20X2 la Sociedad constituyó una provisión para impuesto a la renta de Guaraníes  …... (Al … de …...............20X1:  Guaraníes  …....) / (La Sociedad no ha constituido provisión para impuesto a la renta, debido a que a esa fecha la misma generó renta imponible que fue compensada con quebrantos impositivos acumulados a esa fecha). "]
["La Sociedad contabiliza el impuesto a la renta por el método de lo diferido, método del pasivo. El mencionado método establece la determinación de activos o pasivos impositivos diferidos netos basados en las diferencias temporales y temporarias, con cargo a la línea Impuesto a la renta del Estado de resultados."]
[]
["El siguiente cuadro detalla las diferencias temporales a la tasa del impuesto a los efectos de determinación del impuesto diferido:"]
[]
[null,{"$f":"IFERROR(IF(Indice!B6=\"\",\"2XX2\",YEAR(Indice!B6)),\"2XX2\")","v":2022},{"$f":"+IFERROR(YEAR(Indice!B6-365),\"2XX1\")","v":2021}]
["Activos y pasivos impositivos diferidos: "]
["Caja y Bancos"]
["Inversiones"]
["Previsión para deudores incobrables"]
["Bienes de uso"]
["Activos intangibles"]
["Previsión del pasivo"]
["Deudas comerciales y bancarias"]
["Bienes de cambio"]
["Sub - total  "]
["Previsión para impuestos diferidos netos "]
["Total activo/pasivo impositivo diferido neto antes de quebrantos"]
["Quebranto impositivo"]
["Total"]

{"sheet":"Nota 39","index":43,"n_rows":9,"n_cols":5,"rows_kept":9,"cut":false,"hidden":true,"merged":[[5,0,5,8],[8,0,8,8],[12,0,12,8]]}
[{"$f":"Indice!C1","v":"GROW S.A.E.C.A."},null,null,null,"Indice"]
[]
[]
[]
["NOTA 39 - HECHOS POSTERIORES"]
["(En caso en que entre la fecha del cierre del ejercicio y la fecha de emisión de los estados financieros existan hechos posteriores significativos deberá evaluarse el tipo de hecho posterior del que se trate y modificar esta nota según corresponda)."]
[]
[]
["Entre la fecha de cierre del ejercicio y la fecha de preparación de estos estados financieros, no han ocurrido hechos significativos de carácter financiero o de otra índole que afecten la situación patrimonial o financiera o los resultados de la Sociedad al … de …..................20X2."]

{"sheet":"Nota 40","index":44,"n_rows":34,"n_cols":3,"rows_kept":34,"cut":false,"hidden":true,"merged":[[7,0,7,6],[23,0,23,5]]}
[{"$f":"Indice!C1","v":"GROW S.A.E.C.A."},null,"Indice"]
[]
[]
[]
["NOTA 40 - SALDOS Y TRANSACCIONES CON PARTES RELACIONADAS"]
["Miles de guaraníes"]
[]
[]
[]
[null,{"$f":"IFERROR(IF(Indice!B6=\"\",\"2XX2\",YEAR(Indice!B6)),\"2XX2\")","v":2022},{"$f":"+IFERROR(YEAR(Indice!B6-365),\"2XX1\")","v":2021}]
["ACTIVO"]
["Inversiones temporales"]
["Cuentas a cobrar comerciales"]
["Otros créditos"]
["Total activo"]
["PASIVO"]
["Cuentas por pagar comerciales"]
["Préstamos a corto plazo"]
["Provisiones"]
["Préstamos a largo plazo"]
["Otros pasivos"]
["Total pasivo"]
[]
[]
[]
[null,{"$f":"IFERROR(IF(Indice!B6=\"\",\"2XX2\",YEAR(Indice!B6)),\"2XX2\")","v":2022},{"$f":"+IFERROR(YEAR(Indice!B6-365),\"2XX1\")","v":2021}]
["Costo de ventas"]
["Compras a …."]
[]
["Gastos administrativos"]
["Honorarios por servicios"]
["Otros "]
["Gastos financieros "]
["Intereses pagados por préstamos"]

{"sheet":"Base de Monedas","index":45,"n_rows":179,"n_cols":3,"rows_kept":179,"cut":false,"hidden":false,"merged":[]}
["PYG","Guaraní","Índice"]
["USD","Dólar estadounidense"]
["EUR","Euro"]
["AED","Dírham de los Emiratos Árabes Unidos"]
["AFN","Afgani"]
["ALL","Lek"]
["AMD","Dram armenio"]
["ANG","Florín antillano neerlandés"]
["AOA","Kwanza"]
["ARS","Peso argentino"]
["AUD","Dólar australiano"]
["AWG","Florín arubeño"]
["AZN","Manat azerbaiyano"]
["BAM","Marco convertible"]
["BBD","Dólar de Barbados"]
["BDT","Taka"]
["BGN","Lev búlgaro"]
["BHD","Dinar bareiní"]
["BIF","Franco de Burundi"]
["BMD","Dólar bermudeño"]
["BND","Dólar de Brunéi"]
["BOB","Boliviano"]
["BOV","MVDOL"]
["BRL","Real brasileño"]
["BSD","Dólar bahameño"]
["BTN","Ngultrum"]
["BWP","Pula"]
["BYN","Rublo bielorruso"]
["BZD","Dólar beliceño"]
["CAD","Dólar canadiense"]
["CDF","Franco congoleño"]
["CHE","Euro WIR"]
["CHF","Franco suizo"]
["CHW","Franco WIR"]
["CLF","Unidad de fomento"]
["CLP","Peso chileno"]
["CNY","Yuan chino"]
["COP","Peso colombiano"]
["COU","Unidad de valor real"]
["CRC","Colón costarricense"]
["CUC","Peso convertible"]
["CUP","Peso cubano"]
["CVE","Escudo caboverdiano"]
["CZK","Corona checa"]
["DJF","Franco yibutiano"]
["DKK","Corona danesa"]
["DOP","Peso dominicano"]
["DZD","Dinar argelino"]
["EGP","Libra egipcia"]
["ERN","Nakfa"]
["ETB","Birr etíope"]
["FJD","Dólar fiyiano"]
["FKP","Libra malvinense"]
["GBP","Libra esterlina"]
["GEL","Lari"]
["GHS","Cedi ghanés"]
["GIP","Libra de Gibraltar"]
["GMD","Dalasi"]
["GNF","Franco guineano"]
["GTQ","Quetzal"]
["GYD","Dólar guyanés"]
["HKD","Dólar de Hong Kong"]
["HNL","Lempira"]
["HRK","Kuna"]
["HTG","Gourde"]
["HUF","Forinto"]
["IDR","Rupia indonesia"]
["ILS","Nuevo shéquel israelí"]
["INR","Rupia india"]
["IQD","Dinar iraquí"]
["IRR","Rial iraní"]
["ISK","Corona islandesa"]
["JMD","Dólar jamaiquino"]
["JOD","Dinar jordano"]
["JPY","Yen"]
["KES","Chelín keniano"]
["KGS","Som"]
["KHR","Riel"]
["KMF","Franco comorense"]
["KPW","Won norcoreano"]
["KRW","Won"]
["KWD","Dinar kuwaití"]
["KYD","Dólar de las Islas Caimán"]
["KZT","Tenge"]
["LAK","Kip"]
["LBP","Libra libanesa"]
["LKR","Rupia de Sri Lanka"]
["LRD","Dólar liberiano"]
["LSL","Loti"]
["LYD","Dinar libio"]
["MAD","Dírham marroquí"]
["MDL","Leu moldavo"]
["MGA","Ariary malgache"]
["MKD","Denar"]
["MMK","Kyat"]
["MNT","Tugrik"]
["MOP","Pataca"]
["MRU","Uguiya"]
["MUR","Rupia de Mauricio"]
["MVR","Rufiyaa"]
["MWK","Kwacha"]
["MXN","Peso mexicano"]
["MXV","Unidad de Inversión (UDI) mexicana"]
["MYR","Ringgit malayo"]
["MZN","Metical mozambiqueño"]
["NAD","Dólar namibio"]
["NGN","Naira"]
["NIO","Córdoba"]
["NOK","Corona noruega"]
["NPR","Rupia nepalí"]
["NZD","Dólar neozelandés"]
["OMR","Rial omaní"]
["PAB","Balboa"]
["PEN","Sol"]
["PGK","Kina"]
["PHP","Peso filipino"]
["PKR","Rupia pakistaní"]
["PLN","Złoty"]
["QAR","Riyal qatarí"]
["RON","Leu rumano"]
["RSD","Dinar serbio"]
["RUB","Rublo ruso"]
["RWF","Franco ruandés"]
["SAR","Riyal saudí"]
["SBD","Dólar de las Islas Salomón"]
["SCR","Rupia seychelense"]
["SDG","Dinar sudanés"]
["SEK","Corona sueca"]
["SGD","Dólar de Singapur"]
["SHP","Libra de Santa Elena"]
["SLL","Leone"]
["SOS","Chelín somalí"]
["SRD","Dólar surinamés"]
["SSP","Libra sursudanesa"]
["STN","Dobra"]
["SVC","Colon Salvadoreño"]
["SYP","Libra siria"]
["SZL","Lilangeni"]
["THB","Baht"]
["TJS","Somoni tayiko"]
["TMT","Manat turcomano"]
["TND","Dinar tunecino"]
["TOP","Paʻanga"]
["TRY","Lira turca"]
["TTD","Dólar de Trinidad y Tobago"]
["TWD","Nuevo dólar taiwanés"]
["TZS","Chelín tanzano"]
["UAH","Grivna"]
["UGX","Chelín ugandés"]
["USN","Dólar estadounidense (Siguiente día)"]
["UYI","Peso en Unidades Indexadas (Uruguay)"]
["UYU","Peso uruguayo"]
["UYW","Unidad Previsional"]
["UZS","Som uzbeko"]
["VES7​","Bolívar soberano"]
["VND","Dong vietnamita"]
["VUV","Vatu"]
["WST","Tala"]
["XAF","Franco CFA de África Central"]
["XAG","Plata (una onza troy)"]
["XAU","Oro (una onza troy)"]
["XBA","Unidad compuesta europea (EURCO) (Unidad del mercados de bonos)"]
["XBB","Unidad Monetaria europea (E.M.U.-6) (Unidad del mercado de bonos)"]
["XBC","Unidad europea de cuenta 9 (E.U.A.-9) (Unidad del mercado de bonos)"]
["XBD","Unidad europea de cuenta 17 (E.U.A.-17) (Unidad del mercado de bonos)"]
["XCD","Dólar del Caribe Oriental"]
["XDR","Derechos especiales de giro"]
["XOF","Franco CFA de África Occidental"]
["XPD","Paladio (una onza troy)"]
["XPF","Franco CFP"]
["XPT","Platino (una onza troy)"]
["XSU","SUCRE"]
["XTS","Reservado para pruebas"]
["XUA","Unidad de cuenta BAD"]
["XXX","Sin divisa"]
["YER","Rial yemení"]
["ZAR","Rand"]
["ZMW","Kwacha zambiano"]
["ZWL","Dólar zimbabuense"]